{"text_format":"3","workbook":"xlsx","n_sheets":2,"sheets":["התחלה","לוח שנה שנתי"],"not_rendered":{"images":4,"defined_names":14},"read":"whole","date_system":"1900"}

{"sheet":"התחלה","index":0,"n_rows":7,"n_cols":2,"rows_kept":7}
[null,"אודות תבנית זו"]
[null,"השתמש בתבנית זו כדי ליצור לוח שנה אישי של עסק קטן עבור כל שנה."]
[null,"מלא את שם החברה ואת פרטי הקשר והוסף את סמל החברה."]
[null,"בחר שנה והזן תאריכים ואירועים חשובים."]
[null,"הערה: "]
[null,"הוראות נוספות סופקו בעמודה A בגליון העבודה 'לוח שנה שנתי'. טקסט זה הוסתר במכוון. כדי להסיר את הטקסט, בחר את עמודה A ולאחר מכן הקש DELETE. "]
[null,"לקבלת מידע נוסף על הטבלאות, הקש SHIFT ולאחר מכן F10 בתוך טבלה, בחר את האפשרות 'טבלה' ולאחר מכן בחר 'טקסט חלופי'."]

{"sheet":"לוח שנה שנתי","index":1,"n_rows":55,"n_cols":21,"rows_kept":55,"merged":[[0,2,0,5],[1,1,1,11],[2,2,2,8],[2,10,2,16],[2,21,47,22],[11,2,11,8],[11,10,11,16],[20,2,20,8],[20,10,20,16],[29,2,29,8],[29,10,29,16],[38,2,38,8],[38,10,38,16],[47,2,47,8],[47,10,47,16],[50,20,54,20]]}
["צור לוח שנה של עסק קטן עבור כל שנה בגליון עבודה זה. הוראות שימוש בגליון עבודה זה מופיעות בתאים שבעמודה זו. בחר את פקד הטווח בתא משמאל כדי לשנות את השנה בתא C1. התווית 'תאריכים חשובים' מופיעה בתא U1",null,2020,{"$nulls":17},"תאריכים חשובים"]
["העצה מופיעה בתא משמאל","השתמש בפקד הטווח כדי לשנות את השנה בלוח השנה"]
["לוח השנה עבור השנה שנבחרה מופיע בתאים C3 עד Q55. לוח השנה של ינואר מופיע בתאים C4 עד I10. לוח השנה של פברואר מופיע בתאים K4 עד Q10. התווית 'ינואר' מופיעה בתא C3, והתווית 'פברואר' מופיעה בתא K3. הזן תאריכים ואירועים חשובים בתאים U3 עד U42",null,"ינואר",{"$nulls":7},"פברואר",{"$nulls":9},"1 בינואר"]
["טבלת לוח השנה של ינואר מופיעה בתאים C4 עד I10. טבלת לוח השנה של פברואר מופיעה בתאים K4 עד Q10. ההוראה הבאה מופיעה בתא A12",null,"א'","ב'","ג'","ד'","ה'","ו'","ש'",null,"א'","ב'","ג'","ד'","ה'","ו'","ש'",{"$nulls":3},"תחילת השנה האזרחית"]
[null,null,{"$f":"IF(DAY(JanSun1)=1,\"\",IF(AND(YEAR(JanSun1+1)=CalendarYear,MONTH(JanSun1+1)=1),JanSun1+1,\"\"))","v":""},{"$f":"IF(DAY(JanSun1)=1,\"\",IF(AND(YEAR(JanSun1+2)=CalendarYear,MONTH(JanSun1+2)=1),JanSun1+2,\"\"))","v":""},{"$f":"IF(DAY(JanSun1)=1,\"\",IF(AND(YEAR(JanSun1+3)=CalendarYear,MONTH(JanSun1+3)=1),JanSun1+3,\"\"))","v":""},{"$f":"IF(DAY(JanSun1)=1,\"\",IF(AND(YEAR(JanSun1+4)=CalendarYear,MONTH(JanSun1+4)=1),JanSun1+4,\"\"))","v":"2020-01-01"},{"$f":"IF(DAY(JanSun1)=1,\"\",IF(AND(YEAR(JanSun1+5)=CalendarYear,MONTH(JanSun1+5)=1),JanSun1+5,\"\"))","v":"2020-01-02"},{"$f":"IF(DAY(JanSun1)=1,\"\",IF(AND(YEAR(JanSun1+6)=CalendarYear,MONTH(JanSun1+6)=1),JanSun1+6,\"\"))","v":"2020-01-03"},{"$f":"IF(DAY(JanSun1)=1,IF(AND(YEAR(JanSun1)=CalendarYear,MONTH(JanSun1)=1),JanSun1,\"\"),IF(AND(YEAR(JanSun1+7)=CalendarYear,MONTH(JanSun1+7)=1),JanSun1+7,\"\"))","v":"2020-01-04"},null,{"$f":"IF(DAY(FebSun1)=1,\"\",IF(AND(YEAR(FebSun1+1)=CalendarYear,MONTH(FebSun1+1)=2),FebSun1+1,\"\"))","v":""},{"$f":"IF(DAY(FebSun1)=1,\"\",IF(AND(YEAR(FebSun1+2)=CalendarYear,MONTH(FebSun1+2)=2),FebSun1+2,\"\"))","v":""},{"$f":"IF(DAY(FebSun1)=1,\"\",IF(AND(YEAR(FebSun1+3)=CalendarYear,MONTH(FebSun1+3)=2),FebSun1+3,\"\"))","v":""},{"$f":"IF(DAY(FebSun1)=1,\"\",IF(AND(YEAR(FebSun1+4)=CalendarYear,MONTH(FebSun1+4)=2),FebSun1+4,\"\"))","v":""},{"$f":"IF(DAY(FebSun1)=1,\"\",IF(AND(YEAR(FebSun1+5)=CalendarYear,MONTH(FebSun1+5)=2),FebSun1+5,\"\"))","v":""},{"$f":"IF(DAY(FebSun1)=1,\"\",IF(AND(YEAR(FebSun1+6)=CalendarYear,MONTH(FebSun1+6)=2),FebSun1+6,\"\"))","v":""},{"$f":"IF(DAY(FebSun1)=1,IF(AND(YEAR(FebSun1)=CalendarYear,MONTH(FebSun1)=2),FebSun1,\"\"),IF(AND(YEAR(FebSun1+7)=CalendarYear,MONTH(FebSun1+7)=2),FebSun1+7,\"\"))","v":"2020-02-01"}]
[null,null,{"$f":"IF(DAY(JanSun1)=1,IF(AND(YEAR(JanSun1+1)=CalendarYear,MONTH(JanSun1+1)=1),JanSun1+1,\"\"),IF(AND(YEAR(JanSun1+8)=CalendarYear,MONTH(JanSun1+8)=1),JanSun1+8,\"\"))","v":"2020-01-05"},{"$f":"IF(DAY(JanSun1)=1,IF(AND(YEAR(JanSun1+2)=CalendarYear,MONTH(JanSun1+2)=1),JanSun1+2,\"\"),IF(AND(YEAR(JanSun1+9)=CalendarYear,MONTH(JanSun1+9)=1),JanSun1+9,\"\"))","v":"2020-01-06"},{"$f":"IF(DAY(JanSun1)=1,IF(AND(YEAR(JanSun1+3)=CalendarYear,MONTH(JanSun1+3)=1),JanSun1+3,\"\"),IF(AND(YEAR(JanSun1+10)=CalendarYear,MONTH(JanSun1+10)=1),JanSun1+10,\"\"))","v":"2020-01-07"},{"$f":"IF(DAY(JanSun1)=1,IF(AND(YEAR(JanSun1+4)=CalendarYear,MONTH(JanSun1+4)=1),JanSun1+4,\"\"),IF(AND(YEAR(JanSun1+11)=CalendarYear,MONTH(JanSun1+11)=1),JanSun1+11,\"\"))","v":"2020-01-08"},{"$f":"IF(DAY(JanSun1)=1,IF(AND(YEAR(JanSun1+5)=CalendarYear,MONTH(JanSun1+5)=1),JanSun1+5,\"\"),IF(AND(YEAR(JanSun1+12)=CalendarYear,MONTH(JanSun1+12)=1),JanSun1+12,\"\"))","v":"2020-01-09"},{"$f":"IF(DAY(JanSun1)=1,IF(AND(YEAR(JanSun1+6)=CalendarYear,MONTH(JanSun1+6)=1),JanSun1+6,\"\"),IF(AND(YEAR(JanSun1+13)=CalendarYear,MONTH(JanSun1+13)=1),JanSun1+13,\"\"))","v":"2020-01-10"},{"$f":"IF(DAY(JanSun1)=1,IF(AND(YEAR(JanSun1+7)=CalendarYear,MONTH(JanSun1+7)=1),JanSun1+7,\"\"),IF(AND(YEAR(JanSun1+14)=CalendarYear,MONTH(JanSun1+14)=1),JanSun1+14,\"\"))","v":"2020-01-11"},null,{"$f":"IF(DAY(FebSun1)=1,IF(AND(YEAR(FebSun1+1)=CalendarYear,MONTH(FebSun1+1)=2),FebSun1+1,\"\"),IF(AND(YEAR(FebSun1+8)=CalendarYear,MONTH(FebSun1+8)=2),FebSun1+8,\"\"))","v":"2020-02-02"},{"$f":"IF(DAY(FebSun1)=1,IF(AND(YEAR(FebSun1+2)=CalendarYear,MONTH(FebSun1+2)=2),FebSun1+2,\"\"),IF(AND(YEAR(FebSun1+9)=CalendarYear,MONTH(FebSun1+9)=2),FebSun1+9,\"\"))","v":"2020-02-03"},{"$f":"IF(DAY(FebSun1)=1,IF(AND(YEAR(FebSun1+3)=CalendarYear,MONTH(FebSun1+3)=2),FebSun1+3,\"\"),IF(AND(YEAR(FebSun1+10)=CalendarYear,MONTH(FebSun1+10)=2),FebSun1+10,\"\"))","v":"2020-02-04"},{"$f":"IF(DAY(FebSun1)=1,IF(AND(YEAR(FebSun1+4)=CalendarYear,MONTH(FebSun1+4)=2),FebSun1+4,\"\"),IF(AND(YEAR(FebSun1+11)=CalendarYear,MONTH(FebSun1+11)=2),FebSun1+11,\"\"))","v":"2020-02-05"},{"$f":"IF(DAY(FebSun1)=1,IF(AND(YEAR(FebSun1+5)=CalendarYear,MONTH(FebSun1+5)=2),FebSun1+5,\"\"),IF(AND(YEAR(FebSun1+12)=CalendarYear,MONTH(FebSun1+12)=2),FebSun1+12,\"\"))","v":"2020-02-06"},{"$f":"IF(DAY(FebSun1)=1,IF(AND(YEAR(FebSun1+6)=CalendarYear,MONTH(FebSun1+6)=2),FebSun1+6,\"\"),IF(AND(YEAR(FebSun1+13)=CalendarYear,MONTH(FebSun1+13)=2),FebSun1+13,\"\"))","v":"2020-02-07"},{"$f":"IF(DAY(FebSun1)=1,IF(AND(YEAR(FebSun1+7)=CalendarYear,MONTH(FebSun1+7)=2),FebSun1+7,\"\"),IF(AND(YEAR(FebSun1+14)=CalendarYear,MONTH(FebSun1+14)=2),FebSun1+14,\"\"))","v":"2020-02-08"},{"$nulls":3},"14 בפברואר"]
[null,null,{"$f":"IF(DAY(JanSun1)=1,IF(AND(YEAR(JanSun1+8)=CalendarYear,MONTH(JanSun1+8)=1),JanSun1+8,\"\"),IF(AND(YEAR(JanSun1+15)=CalendarYear,MONTH(JanSun1+15)=1),JanSun1+15,\"\"))","v":"2020-01-12"},{"$f":"IF(DAY(JanSun1)=1,IF(AND(YEAR(JanSun1+9)=CalendarYear,MONTH(JanSun1+9)=1),JanSun1+9,\"\"),IF(AND(YEAR(JanSun1+16)=CalendarYear,MONTH(JanSun1+16)=1),JanSun1+16,\"\"))","v":"2020-01-13"},{"$f":"IF(DAY(JanSun1)=1,IF(AND(YEAR(JanSun1+10)=CalendarYear,MONTH(JanSun1+10)=1),JanSun1+10,\"\"),IF(AND(YEAR(JanSun1+17)=CalendarYear,MONTH(JanSun1+17)=1),JanSun1+17,\"\"))","v":"2020-01-14"},{"$f":"IF(DAY(JanSun1)=1,IF(AND(YEAR(JanSun1+11)=CalendarYear,MONTH(JanSun1+11)=1),JanSun1+11,\"\"),IF(AND(YEAR(JanSun1+18)=CalendarYear,MONTH(JanSun1+18)=1),JanSun1+18,\"\"))","v":"2020-01-15"},{"$f":"IF(DAY(JanSun1)=1,IF(AND(YEAR(JanSun1+12)=CalendarYear,MONTH(JanSun1+12)=1),JanSun1+12,\"\"),IF(AND(YEAR(JanSun1+19)=CalendarYear,MONTH(JanSun1+19)=1),JanSun1+19,\"\"))","v":"2020-01-16"},{"$f":"IF(DAY(JanSun1)=1,IF(AND(YEAR(JanSun1+13)=CalendarYear,MONTH(JanSun1+13)=1),JanSun1+13,\"\"),IF(AND(YEAR(JanSun1+20)=CalendarYear,MONTH(JanSun1+20)=1),JanSun1+20,\"\"))","v":"2020-01-17"},{"$f":"IF(DAY(JanSun1)=1,IF(AND(YEAR(JanSun1+14)=CalendarYear,MONTH(JanSun1+14)=1),JanSun1+14,\"\"),IF(AND(YEAR(JanSun1+21)=CalendarYear,MONTH(JanSun1+21)=1),JanSun1+21,\"\"))","v":"2020-01-18"},null,{"$f":"IF(DAY(FebSun1)=1,IF(AND(YEAR(FebSun1+8)=CalendarYear,MONTH(FebSun1+8)=2),FebSun1+8,\"\"),IF(AND(YEAR(FebSun1+15)=CalendarYear,MONTH(FebSun1+15)=2),FebSun1+15,\"\"))","v":"2020-02-09"},{"$f":"IF(DAY(FebSun1)=1,IF(AND(YEAR(FebSun1+9)=CalendarYear,MONTH(FebSun1+9)=2),FebSun1+9,\"\"),IF(AND(YEAR(FebSun1+16)=CalendarYear,MONTH(FebSun1+16)=2),FebSun1+16,\"\"))","v":"2020-02-10"},{"$f":"IF(DAY(FebSun1)=1,IF(AND(YEAR(FebSun1+10)=CalendarYear,MONTH(FebSun1+10)=2),FebSun1+10,\"\"),IF(AND(YEAR(FebSun1+17)=CalendarYear,MONTH(FebSun1+17)=2),FebSun1+17,\"\"))","v":"2020-02-11"},{"$f":"IF(DAY(FebSun1)=1,IF(AND(YEAR(FebSun1+11)=CalendarYear,MONTH(FebSun1+11)=2),FebSun1+11,\"\"),IF(AND(YEAR(FebSun1+18)=CalendarYear,MONTH(FebSun1+18)=2),FebSun1+18,\"\"))","v":"2020-02-12"},{"$f":"IF(DAY(FebSun1)=1,IF(AND(YEAR(FebSun1+12)=CalendarYear,MONTH(FebSun1+12)=2),FebSun1+12,\"\"),IF(AND(YEAR(FebSun1+19)=CalendarYear,MONTH(FebSun1+19)=2),FebSun1+19,\"\"))","v":"2020-02-13"},{"$f":"IF(DAY(FebSun1)=1,IF(AND(YEAR(FebSun1+13)=CalendarYear,MONTH(FebSun1+13)=2),FebSun1+13,\"\"),IF(AND(YEAR(FebSun1+20)=CalendarYear,MONTH(FebSun1+20)=2),FebSun1+20,\"\"))","v":"2020-02-14"},{"$f":"IF(DAY(FebSun1)=1,IF(AND(YEAR(FebSun1+14)=CalendarYear,MONTH(FebSun1+14)=2),FebSun1+14,\"\"),IF(AND(YEAR(FebSun1+21)=CalendarYear,MONTH(FebSun1+21)=2),FebSun1+21,\"\"))","v":"2020-02-15"},{"$nulls":3},"יום האהבה"]
[null,null,{"$f":"IF(DAY(JanSun1)=1,IF(AND(YEAR(JanSun1+15)=CalendarYear,MONTH(JanSun1+15)=1),JanSun1+15,\"\"),IF(AND(YEAR(JanSun1+22)=CalendarYear,MONTH(JanSun1+22)=1),JanSun1+22,\"\"))","v":"2020-01-19"},{"$f":"IF(DAY(JanSun1)=1,IF(AND(YEAR(JanSun1+16)=CalendarYear,MONTH(JanSun1+16)=1),JanSun1+16,\"\"),IF(AND(YEAR(JanSun1+23)=CalendarYear,MONTH(JanSun1+23)=1),JanSun1+23,\"\"))","v":"2020-01-20"},{"$f":"IF(DAY(JanSun1)=1,IF(AND(YEAR(JanSun1+17)=CalendarYear,MONTH(JanSun1+17)=1),JanSun1+17,\"\"),IF(AND(YEAR(JanSun1+24)=CalendarYear,MONTH(JanSun1+24)=1),JanSun1+24,\"\"))","v":"2020-01-21"},{"$f":"IF(DAY(JanSun1)=1,IF(AND(YEAR(JanSun1+18)=CalendarYear,MONTH(JanSun1+18)=1),JanSun1+18,\"\"),IF(AND(YEAR(JanSun1+25)=CalendarYear,MONTH(JanSun1+25)=1),JanSun1+25,\"\"))","v":"2020-01-22"},{"$f":"IF(DAY(JanSun1)=1,IF(AND(YEAR(JanSun1+19)=CalendarYear,MONTH(JanSun1+19)=1),JanSun1+19,\"\"),IF(AND(YEAR(JanSun1+26)=CalendarYear,MONTH(JanSun1+26)=1),JanSun1+26,\"\"))","v":"2020-01-23"},{"$f":"IF(DAY(JanSun1)=1,IF(AND(YEAR(JanSun1+20)=CalendarYear,MONTH(JanSun1+20)=1),JanSun1+20,\"\"),IF(AND(YEAR(JanSun1+27)=CalendarYear,MONTH(JanSun1+27)=1),JanSun1+27,\"\"))","v":"2020-01-24"},{"$f":"IF(DAY(JanSun1)=1,IF(AND(YEAR(JanSun1+21)=CalendarYear,MONTH(JanSun1+21)=1),JanSun1+21,\"\"),IF(AND(YEAR(JanSun1+28)=CalendarYear,MONTH(JanSun1+28)=1),JanSun1+28,\"\"))","v":"2020-01-25"},null,{"$f":"IF(DAY(FebSun1)=1,IF(AND(YEAR(FebSun1+15)=CalendarYear,MONTH(FebSun1+15)=2),FebSun1+15,\"\"),IF(AND(YEAR(FebSun1+22)=CalendarYear,MONTH(FebSun1+22)=2),FebSun1+22,\"\"))","v":"2020-02-16"},{"$f":"IF(DAY(FebSun1)=1,IF(AND(YEAR(FebSun1+16)=CalendarYear,MONTH(FebSun1+16)=2),FebSun1+16,\"\"),IF(AND(YEAR(FebSun1+23)=CalendarYear,MONTH(FebSun1+23)=2),FebSun1+23,\"\"))","v":"2020-02-17"},{"$f":"IF(DAY(FebSun1)=1,IF(AND(YEAR(FebSun1+17)=CalendarYear,MONTH(FebSun1+17)=2),FebSun1+17,\"\"),IF(AND(YEAR(FebSun1+24)=CalendarYear,MONTH(FebSun1+24)=2),FebSun1+24,\"\"))","v":"2020-02-18"},{"$f":"IF(DAY(FebSun1)=1,IF(AND(YEAR(FebSun1+18)=CalendarYear,MONTH(FebSun1+18)=2),FebSun1+18,\"\"),IF(AND(YEAR(FebSun1+25)=CalendarYear,MONTH(FebSun1+25)=2),FebSun1+25,\"\"))","v":"2020-02-19"},{"$f":"IF(DAY(FebSun1)=1,IF(AND(YEAR(FebSun1+19)=CalendarYear,MONTH(FebSun1+19)=2),FebSun1+19,\"\"),IF(AND(YEAR(FebSun1+26)=CalendarYear,MONTH(FebSun1+26)=2),FebSun1+26,\"\"))","v":"2020-02-20"},{"$f":"IF(DAY(FebSun1)=1,IF(AND(YEAR(FebSun1+20)=CalendarYear,MONTH(FebSun1+20)=2),FebSun1+20,\"\"),IF(AND(YEAR(FebSun1+27)=CalendarYear,MONTH(FebSun1+27)=2),FebSun1+27,\"\"))","v":"2020-02-21"},{"$f":"IF(DAY(FebSun1)=1,IF(AND(YEAR(FebSun1+21)=CalendarYear,MONTH(FebSun1+21)=2),FebSun1+21,\"\"),IF(AND(YEAR(FebSun1+28)=CalendarYear,MONTH(FebSun1+28)=2),FebSun1+28,\"\"))","v":"2020-02-22"}]
[null,null,{"$f":"IF(DAY(JanSun1)=1,IF(AND(YEAR(JanSun1+22)=CalendarYear,MONTH(JanSun1+22)=1),JanSun1+22,\"\"),IF(AND(YEAR(JanSun1+29)=CalendarYear,MONTH(JanSun1+29)=1),JanSun1+29,\"\"))","v":"2020-01-26"},{"$f":"IF(DAY(JanSun1)=1,IF(AND(YEAR(JanSun1+23)=CalendarYear,MONTH(JanSun1+23)=1),JanSun1+23,\"\"),IF(AND(YEAR(JanSun1+30)=CalendarYear,MONTH(JanSun1+30)=1),JanSun1+30,\"\"))","v":"2020-01-27"},{"$f":"IF(DAY(JanSun1)=1,IF(AND(YEAR(JanSun1+24)=CalendarYear,MONTH(JanSun1+24)=1),JanSun1+24,\"\"),IF(AND(YEAR(JanSun1+31)=CalendarYear,MONTH(JanSun1+31)=1),JanSun1+31,\"\"))","v":"2020-01-28"},{"$f":"IF(DAY(JanSun1)=1,IF(AND(YEAR(JanSun1+25)=CalendarYear,MONTH(JanSun1+25)=1),JanSun1+25,\"\"),IF(AND(YEAR(JanSun1+32)=CalendarYear,MONTH(JanSun1+32)=1),JanSun1+32,\"\"))","v":"2020-01-29"},{"$f":"IF(DAY(JanSun1)=1,IF(AND(YEAR(JanSun1+26)=CalendarYear,MONTH(JanSun1+26)=1),JanSun1+26,\"\"),IF(AND(YEAR(JanSun1+33)=CalendarYear,MONTH(JanSun1+33)=1),JanSun1+33,\"\"))","v":"2020-01-30"},{"$f":"IF(DAY(JanSun1)=1,IF(AND(YEAR(JanSun1+27)=CalendarYear,MONTH(JanSun1+27)=1),JanSun1+27,\"\"),IF(AND(YEAR(JanSun1+34)=CalendarYear,MONTH(JanSun1+34)=1),JanSun1+34,\"\"))","v":"2020-01-31"},{"$f":"IF(DAY(JanSun1)=1,IF(AND(YEAR(JanSun1+28)=CalendarYear,MONTH(JanSun1+28)=1),JanSun1+28,\"\"),IF(AND(YEAR(JanSun1+35)=CalendarYear,MONTH(JanSun1+35)=1),JanSun1+35,\"\"))","v":""},null,{"$f":"IF(DAY(FebSun1)=1,IF(AND(YEAR(FebSun1+22)=CalendarYear,MONTH(FebSun1+22)=2),FebSun1+22,\"\"),IF(AND(YEAR(FebSun1+29)=CalendarYear,MONTH(FebSun1+29)=2),FebSun1+29,\"\"))","v":"2020-02-23"},{"$f":"IF(DAY(FebSun1)=1,IF(AND(YEAR(FebSun1+23)=CalendarYear,MONTH(FebSun1+23)=2),FebSun1+23,\"\"),IF(AND(YEAR(FebSun1+30)=CalendarYear,MONTH(FebSun1+30)=2),FebSun1+30,\"\"))","v":"2020-02-24"},{"$f":"IF(DAY(FebSun1)=1,IF(AND(YEAR(FebSun1+24)=CalendarYear,MONTH(FebSun1+24)=2),FebSun1+24,\"\"),IF(AND(YEAR(FebSun1+31)=CalendarYear,MONTH(FebSun1+31)=2),FebSun1+31,\"\"))","v":"2020-02-25"},{"$f":"IF(DAY(FebSun1)=1,IF(AND(YEAR(FebSun1+25)=CalendarYear,MONTH(FebSun1+25)=2),FebSun1+25,\"\"),IF(AND(YEAR(FebSun1+32)=CalendarYear,MONTH(FebSun1+32)=2),FebSun1+32,\"\"))","v":"2020-02-26"},{"$f":"IF(DAY(FebSun1)=1,IF(AND(YEAR(FebSun1+26)=CalendarYear,MONTH(FebSun1+26)=2),FebSun1+26,\"\"),IF(AND(YEAR(FebSun1+33)=CalendarYear,MONTH(FebSun1+33)=2),FebSun1+33,\"\"))","v":"2020-02-27"},{"$f":"IF(DAY(FebSun1)=1,IF(AND(YEAR(FebSun1+27)=CalendarYear,MONTH(FebSun1+27)=2),FebSun1+27,\"\"),IF(AND(YEAR(FebSun1+34)=CalendarYear,MONTH(FebSun1+34)=2),FebSun1+34,\"\"))","v":"2020-02-28"},{"$f":"IF(DAY(FebSun1)=1,IF(AND(YEAR(FebSun1+28)=CalendarYear,MONTH(FebSun1+28)=2),FebSun1+28,\"\"),IF(AND(YEAR(FebSun1+35)=CalendarYear,MONTH(FebSun1+35)=2),FebSun1+35,\"\"))","v":"2020-02-29"},{"$nulls":3},"22 בפברואר"]
[null,null,{"$f":"IF(DAY(JanSun1)=1,IF(AND(YEAR(JanSun1+29)=CalendarYear,MONTH(JanSun1+29)=1),JanSun1+29,\"\"),IF(AND(YEAR(JanSun1+36)=CalendarYear,MONTH(JanSun1+36)=1),JanSun1+36,\"\"))","v":""},{"$f":"IF(DAY(JanSun1)=1,IF(AND(YEAR(JanSun1+30)=CalendarYear,MONTH(JanSun1+30)=1),JanSun1+30,\"\"),IF(AND(YEAR(JanSun1+37)=CalendarYear,MONTH(JanSun1+37)=1),JanSun1+37,\"\"))","v":""},{"$f":"IF(DAY(JanSun1)=1,IF(AND(YEAR(JanSun1+31)=CalendarYear,MONTH(JanSun1+31)=1),JanSun1+31,\"\"),IF(AND(YEAR(JanSun1+38)=CalendarYear,MONTH(JanSun1+38)=1),JanSun1+38,\"\"))","v":""},{"$f":"IF(DAY(JanSun1)=1,IF(AND(YEAR(JanSun1+32)=CalendarYear,MONTH(JanSun1+32)=1),JanSun1+32,\"\"),IF(AND(YEAR(JanSun1+39)=CalendarYear,MONTH(JanSun1+39)=1),JanSun1+39,\"\"))","v":""},{"$f":"IF(DAY(JanSun1)=1,IF(AND(YEAR(JanSun1+33)=CalendarYear,MONTH(JanSun1+33)=1),JanSun1+33,\"\"),IF(AND(YEAR(JanSun1+40)=CalendarYear,MONTH(JanSun1+40)=1),JanSun1+40,\"\"))","v":""},{"$f":"IF(DAY(JanSun1)=1,IF(AND(YEAR(JanSun1+34)=CalendarYear,MONTH(JanSun1+34)=1),JanSun1+34,\"\"),IF(AND(YEAR(JanSun1+41)=CalendarYear,MONTH(JanSun1+41)=1),JanSun1+41,\"\"))","v":""},{"$f":"IF(DAY(JanSun1)=1,IF(AND(YEAR(JanSun1+35)=CalendarYear,MONTH(JanSun1+35)=1),JanSun1+35,\"\"),IF(AND(YEAR(JanSun1+42)=CalendarYear,MONTH(JanSun1+42)=1),JanSun1+42,\"\"))","v":""},null,{"$f":"IF(DAY(FebSun1)=1,IF(AND(YEAR(FebSun1+29)=CalendarYear,MONTH(FebSun1+29)=2),FebSun1+29,\"\"),IF(AND(YEAR(FebSun1+36)=CalendarYear,MONTH(FebSun1+36)=2),FebSun1+36,\"\"))","v":""},{"$f":"IF(DAY(FebSun1)=1,IF(AND(YEAR(FebSun1+30)=CalendarYear,MONTH(FebSun1+30)=2),FebSun1+30,\"\"),IF(AND(YEAR(FebSun1+37)=CalendarYear,MONTH(FebSun1+37)=2),FebSun1+37,\"\"))","v":""},{"$f":"IF(DAY(FebSun1)=1,IF(AND(YEAR(FebSun1+31)=CalendarYear,MONTH(FebSun1+31)=2),FebSun1+31,\"\"),IF(AND(YEAR(FebSun1+38)=CalendarYear,MONTH(FebSun1+38)=2),FebSun1+38,\"\"))","v":""},{"$f":"IF(DAY(FebSun1)=1,IF(AND(YEAR(FebSun1+32)=CalendarYear,MONTH(FebSun1+32)=2),FebSun1+32,\"\"),IF(AND(YEAR(FebSun1+39)=CalendarYear,MONTH(FebSun1+39)=2),FebSun1+39,\"\"))","v":""},{"$f":"IF(DAY(FebSun1)=1,IF(AND(YEAR(FebSun1+33)=CalendarYear,MONTH(FebSun1+33)=2),FebSun1+33,\"\"),IF(AND(YEAR(FebSun1+40)=CalendarYear,MONTH(FebSun1+40)=2),FebSun1+40,\"\"))","v":""},{"$f":"IF(DAY(FebSun1)=1,IF(AND(YEAR(FebSun1+34)=CalendarYear,MONTH(FebSun1+34)=2),FebSun1+34,\"\"),IF(AND(YEAR(FebSun1+41)=CalendarYear,MONTH(FebSun1+41)=2),FebSun1+41,\"\"))","v":""},{"$f":"IF(DAY(FebSun1)=1,IF(AND(YEAR(FebSun1+35)=CalendarYear,MONTH(FebSun1+35)=2),FebSun1+35,\"\"),IF(AND(YEAR(FebSun1+42)=CalendarYear,MONTH(FebSun1+42)=2),FebSun1+42,\"\"))","v":""},{"$nulls":3},"בית פתוח"]
[]
["התווית 'מרץ' מופיעה בתא C12, והתווית 'אפריל' מופיעה בתא K12",null,"מרץ",{"$nulls":7},"אפריל"]
["טבלת לוח השנה של מרץ מופיעה בתאים C13 עד I19. טבלת לוח השנה של אפריל מופיעה בתאים K13 עד Q19. ההוראה הבאה מופיעה בתא A21",null,"א'","ב'","ג'","ד'","ה'","ו'","ש'",null,"א'","ב'","ג'","ד'","ה'","ו'","ש'"]
[null,null,{"$f":"IF(DAY(MarSun1)=1,\"\",IF(AND(YEAR(MarSun1+1)=CalendarYear,MONTH(MarSun1+1)=3),MarSun1+1,\"\"))","v":"2020-03-01"},{"$f":"IF(DAY(MarSun1)=1,\"\",IF(AND(YEAR(MarSun1+2)=CalendarYear,MONTH(MarSun1+2)=3),MarSun1+2,\"\"))","v":"2020-03-02"},{"$f":"IF(DAY(MarSun1)=1,\"\",IF(AND(YEAR(MarSun1+3)=CalendarYear,MONTH(MarSun1+3)=3),MarSun1+3,\"\"))","v":"2020-03-03"},{"$f":"IF(DAY(MarSun1)=1,\"\",IF(AND(YEAR(MarSun1+4)=CalendarYear,MONTH(MarSun1+4)=3),MarSun1+4,\"\"))","v":"2020-03-04"},{"$f":"IF(DAY(MarSun1)=1,\"\",IF(AND(YEAR(MarSun1+5)=CalendarYear,MONTH(MarSun1+5)=3),MarSun1+5,\"\"))","v":"2020-03-05"},{"$f":"IF(DAY(MarSun1)=1,\"\",IF(AND(YEAR(MarSun1+6)=CalendarYear,MONTH(MarSun1+6)=3),MarSun1+6,\"\"))","v":"2020-03-06"},{"$f":"IF(DAY(MarSun1)=1,IF(AND(YEAR(MarSun1)=CalendarYear,MONTH(MarSun1)=3),MarSun1,\"\"),IF(AND(YEAR(MarSun1+7)=CalendarYear,MONTH(MarSun1+7)=3),MarSun1+7,\"\"))","v":"2020-03-07"},null,{"$f":"IF(DAY(AprSun1)=1,\"\",IF(AND(YEAR(AprSun1+1)=CalendarYear,MONTH(AprSun1+1)=4),AprSun1+1,\"\"))","v":""},{"$f":"IF(DAY(AprSun1)=1,\"\",IF(AND(YEAR(AprSun1+2)=CalendarYear,MONTH(AprSun1+2)=4),AprSun1+2,\"\"))","v":""},{"$f":"IF(DAY(AprSun1)=1,\"\",IF(AND(YEAR(AprSun1+3)=CalendarYear,MONTH(AprSun1+3)=4),AprSun1+3,\"\"))","v":""},{"$f":"IF(DAY(AprSun1)=1,\"\",IF(AND(YEAR(AprSun1+4)=CalendarYear,MONTH(AprSun1+4)=4),AprSun1+4,\"\"))","v":"2020-04-01"},{"$f":"IF(DAY(AprSun1)=1,\"\",IF(AND(YEAR(AprSun1+5)=CalendarYear,MONTH(AprSun1+5)=4),AprSun1+5,\"\"))","v":"2020-04-02"},{"$f":"IF(DAY(AprSun1)=1,\"\",IF(AND(YEAR(AprSun1+6)=CalendarYear,MONTH(AprSun1+6)=4),AprSun1+6,\"\"))","v":"2020-04-03"},{"$f":"IF(DAY(AprSun1)=1,IF(AND(YEAR(AprSun1)=CalendarYear,MONTH(AprSun1)=4),AprSun1,\"\"),IF(AND(YEAR(AprSun1+7)=CalendarYear,MONTH(AprSun1+7)=4),AprSun1+7,\"\"))","v":"2020-04-04"}]
[null,null,{"$f":"IF(DAY(MarSun1)=1,IF(AND(YEAR(MarSun1+1)=CalendarYear,MONTH(MarSun1+1)=3),MarSun1+1,\"\"),IF(AND(YEAR(MarSun1+8)=CalendarYear,MONTH(MarSun1+8)=3),MarSun1+8,\"\"))","v":"2020-03-08"},{"$f":"IF(DAY(MarSun1)=1,IF(AND(YEAR(MarSun1+2)=CalendarYear,MONTH(MarSun1+2)=3),MarSun1+2,\"\"),IF(AND(YEAR(MarSun1+9)=CalendarYear,MONTH(MarSun1+9)=3),MarSun1+9,\"\"))","v":"2020-03-09"},{"$f":"IF(DAY(MarSun1)=1,IF(AND(YEAR(MarSun1+3)=CalendarYear,MONTH(MarSun1+3)=3),MarSun1+3,\"\"),IF(AND(YEAR(MarSun1+10)=CalendarYear,MONTH(MarSun1+10)=3),MarSun1+10,\"\"))","v":"2020-03-10"},{"$f":"IF(DAY(MarSun1)=1,IF(AND(YEAR(MarSun1+4)=CalendarYear,MONTH(MarSun1+4)=3),MarSun1+4,\"\"),IF(AND(YEAR(MarSun1+11)=CalendarYear,MONTH(MarSun1+11)=3),MarSun1+11,\"\"))","v":"2020-03-11"},{"$f":"IF(DAY(MarSun1)=1,IF(AND(YEAR(MarSun1+5)=CalendarYear,MONTH(MarSun1+5)=3),MarSun1+5,\"\"),IF(AND(YEAR(MarSun1+12)=CalendarYear,MONTH(MarSun1+12)=3),MarSun1+12,\"\"))","v":"2020-03-12"},{"$f":"IF(DAY(MarSun1)=1,IF(AND(YEAR(MarSun1+6)=CalendarYear,MONTH(MarSun1+6)=3),MarSun1+6,\"\"),IF(AND(YEAR(MarSun1+13)=CalendarYear,MONTH(MarSun1+13)=3),MarSun1+13,\"\"))","v":"2020-03-13"},{"$f":"IF(DAY(MarSun1)=1,IF(AND(YEAR(MarSun1+7)=CalendarYear,MONTH(MarSun1+7)=3),MarSun1+7,\"\"),IF(AND(YEAR(MarSun1+14)=CalendarYear,MONTH(MarSun1+14)=3),MarSun1+14,\"\"))","v":"2020-03-14"},null,{"$f":"IF(DAY(AprSun1)=1,IF(AND(YEAR(AprSun1+1)=CalendarYear,MONTH(AprSun1+1)=4),AprSun1+1,\"\"),IF(AND(YEAR(AprSun1+8)=CalendarYear,MONTH(AprSun1+8)=4),AprSun1+8,\"\"))","v":"2020-04-05"},{"$f":"IF(DAY(AprSun1)=1,IF(AND(YEAR(AprSun1+2)=CalendarYear,MONTH(AprSun1+2)=4),AprSun1+2,\"\"),IF(AND(YEAR(AprSun1+9)=CalendarYear,MONTH(AprSun1+9)=4),AprSun1+9,\"\"))","v":"2020-04-06"},{"$f":"IF(DAY(AprSun1)=1,IF(AND(YEAR(AprSun1+3)=CalendarYear,MONTH(AprSun1+3)=4),AprSun1+3,\"\"),IF(AND(YEAR(AprSun1+10)=CalendarYear,MONTH(AprSun1+10)=4),AprSun1+10,\"\"))","v":"2020-04-07"},{"$f":"IF(DAY(AprSun1)=1,IF(AND(YEAR(AprSun1+4)=CalendarYear,MONTH(AprSun1+4)=4),AprSun1+4,\"\"),IF(AND(YEAR(AprSun1+11)=CalendarYear,MONTH(AprSun1+11)=4),AprSun1+11,\"\"))","v":"2020-04-08"},{"$f":"IF(DAY(AprSun1)=1,IF(AND(YEAR(AprSun1+5)=CalendarYear,MONTH(AprSun1+5)=4),AprSun1+5,\"\"),IF(AND(YEAR(AprSun1+12)=CalendarYear,MONTH(AprSun1+12)=4),AprSun1+12,\"\"))","v":"2020-04-09"},{"$f":"IF(DAY(AprSun1)=1,IF(AND(YEAR(AprSun1+6)=CalendarYear,MONTH(AprSun1+6)=4),AprSun1+6,\"\"),IF(AND(YEAR(AprSun1+13)=CalendarYear,MONTH(AprSun1+13)=4),AprSun1+13,\"\"))","v":"2020-04-10"},{"$f":"IF(DAY(AprSun1)=1,IF(AND(YEAR(AprSun1+7)=CalendarYear,MONTH(AprSun1+7)=4),AprSun1+7,\"\"),IF(AND(YEAR(AprSun1+14)=CalendarYear,MONTH(AprSun1+14)=4),AprSun1+14,\"\"))","v":"2020-04-11"}]
[null,null,{"$f":"IF(DAY(MarSun1)=1,IF(AND(YEAR(MarSun1+8)=CalendarYear,MONTH(MarSun1+8)=3),MarSun1+8,\"\"),IF(AND(YEAR(MarSun1+15)=CalendarYear,MONTH(MarSun1+15)=3),MarSun1+15,\"\"))","v":"2020-03-15"},{"$f":"IF(DAY(MarSun1)=1,IF(AND(YEAR(MarSun1+9)=CalendarYear,MONTH(MarSun1+9)=3),MarSun1+9,\"\"),IF(AND(YEAR(MarSun1+16)=CalendarYear,MONTH(MarSun1+16)=3),MarSun1+16,\"\"))","v":"2020-03-16"},{"$f":"IF(DAY(MarSun1)=1,IF(AND(YEAR(MarSun1+10)=CalendarYear,MONTH(MarSun1+10)=3),MarSun1+10,\"\"),IF(AND(YEAR(MarSun1+17)=CalendarYear,MONTH(MarSun1+17)=3),MarSun1+17,\"\"))","v":"2020-03-17"},{"$f":"IF(DAY(MarSun1)=1,IF(AND(YEAR(MarSun1+11)=CalendarYear,MONTH(MarSun1+11)=3),MarSun1+11,\"\"),IF(AND(YEAR(MarSun1+18)=CalendarYear,MONTH(MarSun1+18)=3),MarSun1+18,\"\"))","v":"2020-03-18"},{"$f":"IF(DAY(MarSun1)=1,IF(AND(YEAR(MarSun1+12)=CalendarYear,MONTH(MarSun1+12)=3),MarSun1+12,\"\"),IF(AND(YEAR(MarSun1+19)=CalendarYear,MONTH(MarSun1+19)=3),MarSun1+19,\"\"))","v":"2020-03-19"},{"$f":"IF(DAY(MarSun1)=1,IF(AND(YEAR(MarSun1+13)=CalendarYear,MONTH(MarSun1+13)=3),MarSun1+13,\"\"),IF(AND(YEAR(MarSun1+20)=CalendarYear,MONTH(MarSun1+20)=3),MarSun1+20,\"\"))","v":"2020-03-20"},{"$f":"IF(DAY(MarSun1)=1,IF(AND(YEAR(MarSun1+14)=CalendarYear,MONTH(MarSun1+14)=3),MarSun1+14,\"\"),IF(AND(YEAR(MarSun1+21)=CalendarYear,MONTH(MarSun1+21)=3),MarSun1+21,\"\"))","v":"2020-03-21"},null,{"$f":"IF(DAY(AprSun1)=1,IF(AND(YEAR(AprSun1+8)=CalendarYear,MONTH(AprSun1+8)=4),AprSun1+8,\"\"),IF(AND(YEAR(AprSun1+15)=CalendarYear,MONTH(AprSun1+15)=4),AprSun1+15,\"\"))","v":"2020-04-12"},{"$f":"IF(DAY(AprSun1)=1,IF(AND(YEAR(AprSun1+9)=CalendarYear,MONTH(AprSun1+9)=4),AprSun1+9,\"\"),IF(AND(YEAR(AprSun1+16)=CalendarYear,MONTH(AprSun1+16)=4),AprSun1+16,\"\"))","v":"2020-04-13"},{"$f":"IF(DAY(AprSun1)=1,IF(AND(YEAR(AprSun1+10)=CalendarYear,MONTH(AprSun1+10)=4),AprSun1+10,\"\"),IF(AND(YEAR(AprSun1+17)=CalendarYear,MONTH(AprSun1+17)=4),AprSun1+17,\"\"))","v":"2020-04-14"},{"$f":"IF(DAY(AprSun1)=1,IF(AND(YEAR(AprSun1+11)=CalendarYear,MONTH(AprSun1+11)=4),AprSun1+11,\"\"),IF(AND(YEAR(AprSun1+18)=CalendarYear,MONTH(AprSun1+18)=4),AprSun1+18,\"\"))","v":"2020-04-15"},{"$f":"IF(DAY(AprSun1)=1,IF(AND(YEAR(AprSun1+12)=CalendarYear,MONTH(AprSun1+12)=4),AprSun1+12,\"\"),IF(AND(YEAR(AprSun1+19)=CalendarYear,MONTH(AprSun1+19)=4),AprSun1+19,\"\"))","v":"2020-04-16"},{"$f":"IF(DAY(AprSun1)=1,IF(AND(YEAR(AprSun1+13)=CalendarYear,MONTH(AprSun1+13)=4),AprSun1+13,\"\"),IF(AND(YEAR(AprSun1+20)=CalendarYear,MONTH(AprSun1+20)=4),AprSun1+20,\"\"))","v":"2020-04-17"},{"$f":"IF(DAY(AprSun1)=1,IF(AND(YEAR(AprSun1+14)=CalendarYear,MONTH(AprSun1+14)=4),AprSun1+14,\"\"),IF(AND(YEAR(AprSun1+21)=CalendarYear,MONTH(AprSun1+21)=4),AprSun1+21,\"\"))","v":"2020-04-18"}]
[null,null,{"$f":"IF(DAY(MarSun1)=1,IF(AND(YEAR(MarSun1+15)=CalendarYear,MONTH(MarSun1+15)=3),MarSun1+15,\"\"),IF(AND(YEAR(MarSun1+22)=CalendarYear,MONTH(MarSun1+22)=3),MarSun1+22,\"\"))","v":"2020-03-22"},{"$f":"IF(DAY(MarSun1)=1,IF(AND(YEAR(MarSun1+16)=CalendarYear,MONTH(MarSun1+16)=3),MarSun1+16,\"\"),IF(AND(YEAR(MarSun1+23)=CalendarYear,MONTH(MarSun1+23)=3),MarSun1+23,\"\"))","v":"2020-03-23"},{"$f":"IF(DAY(MarSun1)=1,IF(AND(YEAR(MarSun1+17)=CalendarYear,MONTH(MarSun1+17)=3),MarSun1+17,\"\"),IF(AND(YEAR(MarSun1+24)=CalendarYear,MONTH(MarSun1+24)=3),MarSun1+24,\"\"))","v":"2020-03-24"},{"$f":"IF(DAY(MarSun1)=1,IF(AND(YEAR(MarSun1+18)=CalendarYear,MONTH(MarSun1+18)=3),MarSun1+18,\"\"),IF(AND(YEAR(MarSun1+25)=CalendarYear,MONTH(MarSun1+25)=3),MarSun1+25,\"\"))","v":"2020-03-25"},{"$f":"IF(DAY(MarSun1)=1,IF(AND(YEAR(MarSun1+19)=CalendarYear,MONTH(MarSun1+19)=3),MarSun1+19,\"\"),IF(AND(YEAR(MarSun1+26)=CalendarYear,MONTH(MarSun1+26)=3),MarSun1+26,\"\"))","v":"2020-03-26"},{"$f":"IF(DAY(MarSun1)=1,IF(AND(YEAR(MarSun1+20)=CalendarYear,MONTH(MarSun1+20)=3),MarSun1+20,\"\"),IF(AND(YEAR(MarSun1+27)=CalendarYear,MONTH(MarSun1+27)=3),MarSun1+27,\"\"))","v":"2020-03-27"},{"$f":"IF(DAY(MarSun1)=1,IF(AND(YEAR(MarSun1+21)=CalendarYear,MONTH(MarSun1+21)=3),MarSun1+21,\"\"),IF(AND(YEAR(MarSun1+28)=CalendarYear,MONTH(MarSun1+28)=3),MarSun1+28,\"\"))","v":"2020-03-28"},null,{"$f":"IF(DAY(AprSun1)=1,IF(AND(YEAR(AprSun1+15)=CalendarYear,MONTH(AprSun1+15)=4),AprSun1+15,\"\"),IF(AND(YEAR(AprSun1+22)=CalendarYear,MONTH(AprSun1+22)=4),AprSun1+22,\"\"))","v":"2020-04-19"},{"$f":"IF(DAY(AprSun1)=1,IF(AND(YEAR(AprSun1+16)=CalendarYear,MONTH(AprSun1+16)=4),AprSun1+16,\"\"),IF(AND(YEAR(AprSun1+23)=CalendarYear,MONTH(AprSun1+23)=4),AprSun1+23,\"\"))","v":"2020-04-20"},{"$f":"IF(DAY(AprSun1)=1,IF(AND(YEAR(AprSun1+17)=CalendarYear,MONTH(AprSun1+17)=4),AprSun1+17,\"\"),IF(AND(YEAR(AprSun1+24)=CalendarYear,MONTH(AprSun1+24)=4),AprSun1+24,\"\"))","v":"2020-04-21"},{"$f":"IF(DAY(AprSun1)=1,IF(AND(YEAR(AprSun1+18)=CalendarYear,MONTH(AprSun1+18)=4),AprSun1+18,\"\"),IF(AND(YEAR(AprSun1+25)=CalendarYear,MONTH(AprSun1+25)=4),AprSun1+25,\"\"))","v":"2020-04-22"},{"$f":"IF(DAY(AprSun1)=1,IF(AND(YEAR(AprSun1+19)=CalendarYear,MONTH(AprSun1+19)=4),AprSun1+19,\"\"),IF(AND(YEAR(AprSun1+26)=CalendarYear,MONTH(AprSun1+26)=4),AprSun1+26,\"\"))","v":"2020-04-23"},{"$f":"IF(DAY(AprSun1)=1,IF(AND(YEAR(AprSun1+20)=CalendarYear,MONTH(AprSun1+20)=4),AprSun1+20,\"\"),IF(AND(YEAR(AprSun1+27)=CalendarYear,MONTH(AprSun1+27)=4),AprSun1+27,\"\"))","v":"2020-04-24"},{"$f":"IF(DAY(AprSun1)=1,IF(AND(YEAR(AprSun1+21)=CalendarYear,MONTH(AprSun1+21)=4),AprSun1+21,\"\"),IF(AND(YEAR(AprSun1+28)=CalendarYear,MONTH(AprSun1+28)=4),AprSun1+28,\"\"))","v":"2020-04-25"}]
[null,null,{"$f":"IF(DAY(MarSun1)=1,IF(AND(YEAR(MarSun1+22)=CalendarYear,MONTH(MarSun1+22)=3),MarSun1+22,\"\"),IF(AND(YEAR(MarSun1+29)=CalendarYear,MONTH(MarSun1+29)=3),MarSun1+29,\"\"))","v":"2020-03-29"},{"$f":"IF(DAY(MarSun1)=1,IF(AND(YEAR(MarSun1+23)=CalendarYear,MONTH(MarSun1+23)=3),MarSun1+23,\"\"),IF(AND(YEAR(MarSun1+30)=CalendarYear,MONTH(MarSun1+30)=3),MarSun1+30,\"\"))","v":"2020-03-30"},{"$f":"IF(DAY(MarSun1)=1,IF(AND(YEAR(MarSun1+24)=CalendarYear,MONTH(MarSun1+24)=3),MarSun1+24,\"\"),IF(AND(YEAR(MarSun1+31)=CalendarYear,MONTH(MarSun1+31)=3),MarSun1+31,\"\"))","v":"2020-03-31"},{"$f":"IF(DAY(MarSun1)=1,IF(AND(YEAR(MarSun1+25)=CalendarYear,MONTH(MarSun1+25)=3),MarSun1+25,\"\"),IF(AND(YEAR(MarSun1+32)=CalendarYear,MONTH(MarSun1+32)=3),MarSun1+32,\"\"))","v":""},{"$f":"IF(DAY(MarSun1)=1,IF(AND(YEAR(MarSun1+26)=CalendarYear,MONTH(MarSun1+26)=3),MarSun1+26,\"\"),IF(AND(YEAR(MarSun1+33)=CalendarYear,MONTH(MarSun1+33)=3),MarSun1+33,\"\"))","v":""},{"$f":"IF(DAY(MarSun1)=1,IF(AND(YEAR(MarSun1+27)=CalendarYear,MONTH(MarSun1+27)=3),MarSun1+27,\"\"),IF(AND(YEAR(MarSun1+34)=CalendarYear,MONTH(MarSun1+34)=3),MarSun1+34,\"\"))","v":""},{"$f":"IF(DAY(MarSun1)=1,IF(AND(YEAR(MarSun1+28)=CalendarYear,MONTH(MarSun1+28)=3),MarSun1+28,\"\"),IF(AND(YEAR(MarSun1+35)=CalendarYear,MONTH(MarSun1+35)=3),MarSun1+35,\"\"))","v":""},null,{"$f":"IF(DAY(AprSun1)=1,IF(AND(YEAR(AprSun1+22)=CalendarYear,MONTH(AprSun1+22)=4),AprSun1+22,\"\"),IF(AND(YEAR(AprSun1+29)=CalendarYear,MONTH(AprSun1+29)=4),AprSun1+29,\"\"))","v":"2020-04-26"},{"$f":"IF(DAY(AprSun1)=1,IF(AND(YEAR(AprSun1+23)=CalendarYear,MONTH(AprSun1+23)=4),AprSun1+23,\"\"),IF(AND(YEAR(AprSun1+30)=CalendarYear,MONTH(AprSun1+30)=4),AprSun1+30,\"\"))","v":"2020-04-27"},{"$f":"IF(DAY(AprSun1)=1,IF(AND(YEAR(AprSun1+24)=CalendarYear,MONTH(AprSun1+24)=4),AprSun1+24,\"\"),IF(AND(YEAR(AprSun1+31)=CalendarYear,MONTH(AprSun1+31)=4),AprSun1+31,\"\"))","v":"2020-04-28"},{"$f":"IF(DAY(AprSun1)=1,IF(AND(YEAR(AprSun1+25)=CalendarYear,MONTH(AprSun1+25)=4),AprSun1+25,\"\"),IF(AND(YEAR(AprSun1+32)=CalendarYear,MONTH(AprSun1+32)=4),AprSun1+32,\"\"))","v":"2020-04-29"},{"$f":"IF(DAY(AprSun1)=1,IF(AND(YEAR(AprSun1+26)=CalendarYear,MONTH(AprSun1+26)=4),AprSun1+26,\"\"),IF(AND(YEAR(AprSun1+33)=CalendarYear,MONTH(AprSun1+33)=4),AprSun1+33,\"\"))","v":"2020-04-30"},{"$f":"IF(DAY(AprSun1)=1,IF(AND(YEAR(AprSun1+27)=CalendarYear,MONTH(AprSun1+27)=4),AprSun1+27,\"\"),IF(AND(YEAR(AprSun1+34)=CalendarYear,MONTH(AprSun1+34)=4),AprSun1+34,\"\"))","v":""},{"$f":"IF(DAY(AprSun1)=1,IF(AND(YEAR(AprSun1+28)=CalendarYear,MONTH(AprSun1+28)=4),AprSun1+28,\"\"),IF(AND(YEAR(AprSun1+35)=CalendarYear,MONTH(AprSun1+35)=4),AprSun1+35,\"\"))","v":""}]
[null,null,{"$f":"IF(DAY(MarSun1)=1,IF(AND(YEAR(MarSun1+29)=CalendarYear,MONTH(MarSun1+29)=3),MarSun1+29,\"\"),IF(AND(YEAR(MarSun1+36)=CalendarYear,MONTH(MarSun1+36)=3),MarSun1+36,\"\"))","v":""},{"$f":"IF(DAY(MarSun1)=1,IF(AND(YEAR(MarSun1+30)=CalendarYear,MONTH(MarSun1+30)=3),MarSun1+30,\"\"),IF(AND(YEAR(MarSun1+37)=CalendarYear,MONTH(MarSun1+37)=3),MarSun1+37,\"\"))","v":""},{"$f":"IF(DAY(MarSun1)=1,IF(AND(YEAR(MarSun1+31)=CalendarYear,MONTH(MarSun1+31)=3),MarSun1+31,\"\"),IF(AND(YEAR(MarSun1+38)=CalendarYear,MONTH(MarSun1+38)=3),MarSun1+38,\"\"))","v":""},{"$f":"IF(DAY(MarSun1)=1,IF(AND(YEAR(MarSun1+32)=CalendarYear,MONTH(MarSun1+32)=3),MarSun1+32,\"\"),IF(AND(YEAR(MarSun1+39)=CalendarYear,MONTH(MarSun1+39)=3),MarSun1+39,\"\"))","v":""},{"$f":"IF(DAY(MarSun1)=1,IF(AND(YEAR(MarSun1+33)=CalendarYear,MONTH(MarSun1+33)=3),MarSun1+33,\"\"),IF(AND(YEAR(MarSun1+40)=CalendarYear,MONTH(MarSun1+40)=3),MarSun1+40,\"\"))","v":""},{"$f":"IF(DAY(MarSun1)=1,IF(AND(YEAR(MarSun1+34)=CalendarYear,MONTH(MarSun1+34)=3),MarSun1+34,\"\"),IF(AND(YEAR(MarSun1+41)=CalendarYear,MONTH(MarSun1+41)=3),MarSun1+41,\"\"))","v":""},{"$f":"IF(DAY(MarSun1)=1,IF(AND(YEAR(MarSun1+35)=CalendarYear,MONTH(MarSun1+35)=3),MarSun1+35,\"\"),IF(AND(YEAR(MarSun1+42)=CalendarYear,MONTH(MarSun1+42)=3),MarSun1+42,\"\"))","v":""},null,{"$f":"IF(DAY(AprSun1)=1,IF(AND(YEAR(AprSun1+29)=CalendarYear,MONTH(AprSun1+29)=4),AprSun1+29,\"\"),IF(AND(YEAR(AprSun1+36)=CalendarYear,MONTH(AprSun1+36)=4),AprSun1+36,\"\"))","v":""},{"$f":"IF(DAY(AprSun1)=1,IF(AND(YEAR(AprSun1+30)=CalendarYear,MONTH(AprSun1+30)=4),AprSun1+30,\"\"),IF(AND(YEAR(AprSun1+37)=CalendarYear,MONTH(AprSun1+37)=4),AprSun1+37,\"\"))","v":""},{"$f":"IF(DAY(AprSun1)=1,IF(AND(YEAR(AprSun1+31)=CalendarYear,MONTH(AprSun1+31)=4),AprSun1+31,\"\"),IF(AND(YEAR(AprSun1+38)=CalendarYear,MONTH(AprSun1+38)=4),AprSun1+38,\"\"))","v":""},{"$f":"IF(DAY(AprSun1)=1,IF(AND(YEAR(AprSun1+32)=CalendarYear,MONTH(AprSun1+32)=4),AprSun1+32,\"\"),IF(AND(YEAR(AprSun1+39)=CalendarYear,MONTH(AprSun1+39)=4),AprSun1+39,\"\"))","v":""},{"$f":"IF(DAY(AprSun1)=1,IF(AND(YEAR(AprSun1+33)=CalendarYear,MONTH(AprSun1+33)=4),AprSun1+33,\"\"),IF(AND(YEAR(AprSun1+40)=CalendarYear,MONTH(AprSun1+40)=4),AprSun1+40,\"\"))","v":""},{"$f":"IF(DAY(AprSun1)=1,IF(AND(YEAR(AprSun1+34)=CalendarYear,MONTH(AprSun1+34)=4),AprSun1+34,\"\"),IF(AND(YEAR(AprSun1+41)=CalendarYear,MONTH(AprSun1+41)=4),AprSun1+41,\"\"))","v":""},{"$f":"IF(DAY(AprSun1)=1,IF(AND(YEAR(AprSun1+35)=CalendarYear,MONTH(AprSun1+35)=4),AprSun1+35,\"\"),IF(AND(YEAR(AprSun1+42)=CalendarYear,MONTH(AprSun1+42)=4),AprSun1+42,\"\"))","v":""}]
[]
["התווית 'מאי' מופיעה בתא C21, והתווית 'יוני' מופיעה בתא K21",null,"מאי",{"$nulls":7},"יוני"]
["טבלת לוח השנה של מאי מופיעה בתאים C22 עד I28. טבלת לוח השנה של יוני מופיעה בתאים K22 עד Q28. ההוראה הבאה מופיעה בתא A30",null,"א'","ב'","ג'","ד'","ה'","ו'","ש'",null,"א'","ב'","ג'","ד'","ה'","ו'","ש'"]
[null,null,{"$f":"IF(DAY(MaySun1)=1,\"\",IF(AND(YEAR(MaySun1+1)=CalendarYear,MONTH(MaySun1+1)=5),MaySun1+1,\"\"))","v":""},{"$f":"IF(DAY(MaySun1)=1,\"\",IF(AND(YEAR(MaySun1+2)=CalendarYear,MONTH(MaySun1+2)=5),MaySun1+2,\"\"))","v":""},{"$f":"IF(DAY(MaySun1)=1,\"\",IF(AND(YEAR(MaySun1+3)=CalendarYear,MONTH(MaySun1+3)=5),MaySun1+3,\"\"))","v":""},{"$f":"IF(DAY(MaySun1)=1,\"\",IF(AND(YEAR(MaySun1+4)=CalendarYear,MONTH(MaySun1+4)=5),MaySun1+4,\"\"))","v":""},{"$f":"IF(DAY(MaySun1)=1,\"\",IF(AND(YEAR(MaySun1+5)=CalendarYear,MONTH(MaySun1+5)=5),MaySun1+5,\"\"))","v":""},{"$f":"IF(DAY(MaySun1)=1,\"\",IF(AND(YEAR(MaySun1+6)=CalendarYear,MONTH(MaySun1+6)=5),MaySun1+6,\"\"))","v":"2020-05-01"},{"$f":"IF(DAY(MaySun1)=1,IF(AND(YEAR(MaySun1)=CalendarYear,MONTH(MaySun1)=5),MaySun1,\"\"),IF(AND(YEAR(MaySun1+7)=CalendarYear,MONTH(MaySun1+7)=5),MaySun1+7,\"\"))","v":"2020-05-02"},null,{"$f":"IF(DAY(JunSun1)=1,\"\",IF(AND(YEAR(JunSun1+1)=CalendarYear,MONTH(JunSun1+1)=6),JunSun1+1,\"\"))","v":""},{"$f":"IF(DAY(JunSun1)=1,\"\",IF(AND(YEAR(JunSun1+2)=CalendarYear,MONTH(JunSun1+2)=6),JunSun1+2,\"\"))","v":"2020-06-01"},{"$f":"IF(DAY(JunSun1)=1,\"\",IF(AND(YEAR(JunSun1+3)=CalendarYear,MONTH(JunSun1+3)=6),JunSun1+3,\"\"))","v":"2020-06-02"},{"$f":"IF(DAY(JunSun1)=1,\"\",IF(AND(YEAR(JunSun1+4)=CalendarYear,MONTH(JunSun1+4)=6),JunSun1+4,\"\"))","v":"2020-06-03"},{"$f":"IF(DAY(JunSun1)=1,\"\",IF(AND(YEAR(JunSun1+5)=CalendarYear,MONTH(JunSun1+5)=6),JunSun1+5,\"\"))","v":"2020-06-04"},{"$f":"IF(DAY(JunSun1)=1,\"\",IF(AND(YEAR(JunSun1+6)=CalendarYear,MONTH(JunSun1+6)=6),JunSun1+6,\"\"))","v":"2020-06-05"},{"$f":"IF(DAY(JunSun1)=1,IF(AND(YEAR(JunSun1)=CalendarYear,MONTH(JunSun1)=6),JunSun1,\"\"),IF(AND(YEAR(JunSun1+7)=CalendarYear,MONTH(JunSun1+7)=6),JunSun1+7,\"\"))","v":"2020-06-06"}]
[null,null,{"$f":"IF(DAY(MaySun1)=1,IF(AND(YEAR(MaySun1+1)=CalendarYear,MONTH(MaySun1+1)=5),MaySun1+1,\"\"),IF(AND(YEAR(MaySun1+8)=CalendarYear,MONTH(MaySun1+8)=5),MaySun1+8,\"\"))","v":"2020-05-03"},{"$f":"IF(DAY(MaySun1)=1,IF(AND(YEAR(MaySun1+2)=CalendarYear,MONTH(MaySun1+2)=5),MaySun1+2,\"\"),IF(AND(YEAR(MaySun1+9)=CalendarYear,MONTH(MaySun1+9)=5),MaySun1+9,\"\"))","v":"2020-05-04"},{"$f":"IF(DAY(MaySun1)=1,IF(AND(YEAR(MaySun1+3)=CalendarYear,MONTH(MaySun1+3)=5),MaySun1+3,\"\"),IF(AND(YEAR(MaySun1+10)=CalendarYear,MONTH(MaySun1+10)=5),MaySun1+10,\"\"))","v":"2020-05-05"},{"$f":"IF(DAY(MaySun1)=1,IF(AND(YEAR(MaySun1+4)=CalendarYear,MONTH(MaySun1+4)=5),MaySun1+4,\"\"),IF(AND(YEAR(MaySun1+11)=CalendarYear,MONTH(MaySun1+11)=5),MaySun1+11,\"\"))","v":"2020-05-06"},{"$f":"IF(DAY(MaySun1)=1,IF(AND(YEAR(MaySun1+5)=CalendarYear,MONTH(MaySun1+5)=5),MaySun1+5,\"\"),IF(AND(YEAR(MaySun1+12)=CalendarYear,MONTH(MaySun1+12)=5),MaySun1+12,\"\"))","v":"2020-05-07"},{"$f":"IF(DAY(MaySun1)=1,IF(AND(YEAR(MaySun1+6)=CalendarYear,MONTH(MaySun1+6)=5),MaySun1+6,\"\"),IF(AND(YEAR(MaySun1+13)=CalendarYear,MONTH(MaySun1+13)=5),MaySun1+13,\"\"))","v":"2020-05-08"},{"$f":"IF(DAY(MaySun1)=1,IF(AND(YEAR(MaySun1+7)=CalendarYear,MONTH(MaySun1+7)=5),MaySun1+7,\"\"),IF(AND(YEAR(MaySun1+14)=CalendarYear,MONTH(MaySun1+14)=5),MaySun1+14,\"\"))","v":"2020-05-09"},null,{"$f":"IF(DAY(JunSun1)=1,IF(AND(YEAR(JunSun1+1)=CalendarYear,MONTH(JunSun1+1)=6),JunSun1+1,\"\"),IF(AND(YEAR(JunSun1+8)=CalendarYear,MONTH(JunSun1+8)=6),JunSun1+8,\"\"))","v":"2020-06-07"},{"$f":"IF(DAY(JunSun1)=1,IF(AND(YEAR(JunSun1+2)=CalendarYear,MONTH(JunSun1+2)=6),JunSun1+2,\"\"),IF(AND(YEAR(JunSun1+9)=CalendarYear,MONTH(JunSun1+9)=6),JunSun1+9,\"\"))","v":"2020-06-08"},{"$f":"IF(DAY(JunSun1)=1,IF(AND(YEAR(JunSun1+3)=CalendarYear,MONTH(JunSun1+3)=6),JunSun1+3,\"\"),IF(AND(YEAR(JunSun1+10)=CalendarYear,MONTH(JunSun1+10)=6),JunSun1+10,\"\"))","v":"2020-06-09"},{"$f":"IF(DAY(JunSun1)=1,IF(AND(YEAR(JunSun1+4)=CalendarYear,MONTH(JunSun1+4)=6),JunSun1+4,\"\"),IF(AND(YEAR(JunSun1+11)=CalendarYear,MONTH(JunSun1+11)=6),JunSun1+11,\"\"))","v":"2020-06-10"},{"$f":"IF(DAY(JunSun1)=1,IF(AND(YEAR(JunSun1+5)=CalendarYear,MONTH(JunSun1+5)=6),JunSun1+5,\"\"),IF(AND(YEAR(JunSun1+12)=CalendarYear,MONTH(JunSun1+12)=6),JunSun1+12,\"\"))","v":"2020-06-11"},{"$f":"IF(DAY(JunSun1)=1,IF(AND(YEAR(JunSun1+6)=CalendarYear,MONTH(JunSun1+6)=6),JunSun1+6,\"\"),IF(AND(YEAR(JunSun1+13)=CalendarYear,MONTH(JunSun1+13)=6),JunSun1+13,\"\"))","v":"2020-06-12"},{"$f":"IF(DAY(JunSun1)=1,IF(AND(YEAR(JunSun1+7)=CalendarYear,MONTH(JunSun1+7)=6),JunSun1+7,\"\"),IF(AND(YEAR(JunSun1+14)=CalendarYear,MONTH(JunSun1+14)=6),JunSun1+14,\"\"))","v":"2020-06-13"}]
[null,null,{"$f":"IF(DAY(MaySun1)=1,IF(AND(YEAR(MaySun1+8)=CalendarYear,MONTH(MaySun1+8)=5),MaySun1+8,\"\"),IF(AND(YEAR(MaySun1+15)=CalendarYear,MONTH(MaySun1+15)=5),MaySun1+15,\"\"))","v":"2020-05-10"},{"$f":"IF(DAY(MaySun1)=1,IF(AND(YEAR(MaySun1+9)=CalendarYear,MONTH(MaySun1+9)=5),MaySun1+9,\"\"),IF(AND(YEAR(MaySun1+16)=CalendarYear,MONTH(MaySun1+16)=5),MaySun1+16,\"\"))","v":"2020-05-11"},{"$f":"IF(DAY(MaySun1)=1,IF(AND(YEAR(MaySun1+10)=CalendarYear,MONTH(MaySun1+10)=5),MaySun1+10,\"\"),IF(AND(YEAR(MaySun1+17)=CalendarYear,MONTH(MaySun1+17)=5),MaySun1+17,\"\"))","v":"2020-05-12"},{"$f":"IF(DAY(MaySun1)=1,IF(AND(YEAR(MaySun1+11)=CalendarYear,MONTH(MaySun1+11)=5),MaySun1+11,\"\"),IF(AND(YEAR(MaySun1+18)=CalendarYear,MONTH(MaySun1+18)=5),MaySun1+18,\"\"))","v":"2020-05-13"},{"$f":"IF(DAY(MaySun1)=1,IF(AND(YEAR(MaySun1+12)=CalendarYear,MONTH(MaySun1+12)=5),MaySun1+12,\"\"),IF(AND(YEAR(MaySun1+19)=CalendarYear,MONTH(MaySun1+19)=5),MaySun1+19,\"\"))","v":"2020-05-14"},{"$f":"IF(DAY(MaySun1)=1,IF(AND(YEAR(MaySun1+13)=CalendarYear,MONTH(MaySun1+13)=5),MaySun1+13,\"\"),IF(AND(YEAR(MaySun1+20)=CalendarYear,MONTH(MaySun1+20)=5),MaySun1+20,\"\"))","v":"2020-05-15"},{"$f":"IF(DAY(MaySun1)=1,IF(AND(YEAR(MaySun1+14)=CalendarYear,MONTH(MaySun1+14)=5),MaySun1+14,\"\"),IF(AND(YEAR(MaySun1+21)=CalendarYear,MONTH(MaySun1+21)=5),MaySun1+21,\"\"))","v":"2020-05-16"},null,{"$f":"IF(DAY(JunSun1)=1,IF(AND(YEAR(JunSun1+8)=CalendarYear,MONTH(JunSun1+8)=6),JunSun1+8,\"\"),IF(AND(YEAR(JunSun1+15)=CalendarYear,MONTH(JunSun1+15)=6),JunSun1+15,\"\"))","v":"2020-06-14"},{"$f":"IF(DAY(JunSun1)=1,IF(AND(YEAR(JunSun1+9)=CalendarYear,MONTH(JunSun1+9)=6),JunSun1+9,\"\"),IF(AND(YEAR(JunSun1+16)=CalendarYear,MONTH(JunSun1+16)=6),JunSun1+16,\"\"))","v":"2020-06-15"},{"$f":"IF(DAY(JunSun1)=1,IF(AND(YEAR(JunSun1+10)=CalendarYear,MONTH(JunSun1+10)=6),JunSun1+10,\"\"),IF(AND(YEAR(JunSun1+17)=CalendarYear,MONTH(JunSun1+17)=6),JunSun1+17,\"\"))","v":"2020-06-16"},{"$f":"IF(DAY(JunSun1)=1,IF(AND(YEAR(JunSun1+11)=CalendarYear,MONTH(JunSun1+11)=6),JunSun1+11,\"\"),IF(AND(YEAR(JunSun1+18)=CalendarYear,MONTH(JunSun1+18)=6),JunSun1+18,\"\"))","v":"2020-06-17"},{"$f":"IF(DAY(JunSun1)=1,IF(AND(YEAR(JunSun1+12)=CalendarYear,MONTH(JunSun1+12)=6),JunSun1+12,\"\"),IF(AND(YEAR(JunSun1+19)=CalendarYear,MONTH(JunSun1+19)=6),JunSun1+19,\"\"))","v":"2020-06-18"},{"$f":"IF(DAY(JunSun1)=1,IF(AND(YEAR(JunSun1+13)=CalendarYear,MONTH(JunSun1+13)=6),JunSun1+13,\"\"),IF(AND(YEAR(JunSun1+20)=CalendarYear,MONTH(JunSun1+20)=6),JunSun1+20,\"\"))","v":"2020-06-19"},{"$f":"IF(DAY(JunSun1)=1,IF(AND(YEAR(JunSun1+14)=CalendarYear,MONTH(JunSun1+14)=6),JunSun1+14,\"\"),IF(AND(YEAR(JunSun1+21)=CalendarYear,MONTH(JunSun1+21)=6),JunSun1+21,\"\"))","v":"2020-06-20"}]
[null,null,{"$f":"IF(DAY(MaySun1)=1,IF(AND(YEAR(MaySun1+15)=CalendarYear,MONTH(MaySun1+15)=5),MaySun1+15,\"\"),IF(AND(YEAR(MaySun1+22)=CalendarYear,MONTH(MaySun1+22)=5),MaySun1+22,\"\"))","v":"2020-05-17"},{"$f":"IF(DAY(MaySun1)=1,IF(AND(YEAR(MaySun1+16)=CalendarYear,MONTH(MaySun1+16)=5),MaySun1+16,\"\"),IF(AND(YEAR(MaySun1+23)=CalendarYear,MONTH(MaySun1+23)=5),MaySun1+23,\"\"))","v":"2020-05-18"},{"$f":"IF(DAY(MaySun1)=1,IF(AND(YEAR(MaySun1+17)=CalendarYear,MONTH(MaySun1+17)=5),MaySun1+17,\"\"),IF(AND(YEAR(MaySun1+24)=CalendarYear,MONTH(MaySun1+24)=5),MaySun1+24,\"\"))","v":"2020-05-19"},{"$f":"IF(DAY(MaySun1)=1,IF(AND(YEAR(MaySun1+18)=CalendarYear,MONTH(MaySun1+18)=5),MaySun1+18,\"\"),IF(AND(YEAR(MaySun1+25)=CalendarYear,MONTH(MaySun1+25)=5),MaySun1+25,\"\"))","v":"2020-05-20"},{"$f":"IF(DAY(MaySun1)=1,IF(AND(YEAR(MaySun1+19)=CalendarYear,MONTH(MaySun1+19)=5),MaySun1+19,\"\"),IF(AND(YEAR(MaySun1+26)=CalendarYear,MONTH(MaySun1+26)=5),MaySun1+26,\"\"))","v":"2020-05-21"},{"$f":"IF(DAY(MaySun1)=1,IF(AND(YEAR(MaySun1+20)=CalendarYear,MONTH(MaySun1+20)=5),MaySun1+20,\"\"),IF(AND(YEAR(MaySun1+27)=CalendarYear,MONTH(MaySun1+27)=5),MaySun1+27,\"\"))","v":"2020-05-22"},{"$f":"IF(DAY(MaySun1)=1,IF(AND(YEAR(MaySun1+21)=CalendarYear,MONTH(MaySun1+21)=5),MaySun1+21,\"\"),IF(AND(YEAR(MaySun1+28)=CalendarYear,MONTH(MaySun1+28)=5),MaySun1+28,\"\"))","v":"2020-05-23"},null,{"$f":"IF(DAY(JunSun1)=1,IF(AND(YEAR(JunSun1+15)=CalendarYear,MONTH(JunSun1+15)=6),JunSun1+15,\"\"),IF(AND(YEAR(JunSun1+22)=CalendarYear,MONTH(JunSun1+22)=6),JunSun1+22,\"\"))","v":"2020-06-21"},{"$f":"IF(DAY(JunSun1)=1,IF(AND(YEAR(JunSun1+16)=CalendarYear,MONTH(JunSun1+16)=6),JunSun1+16,\"\"),IF(AND(YEAR(JunSun1+23)=CalendarYear,MONTH(JunSun1+23)=6),JunSun1+23,\"\"))","v":"2020-06-22"},{"$f":"IF(DAY(JunSun1)=1,IF(AND(YEAR(JunSun1+17)=CalendarYear,MONTH(JunSun1+17)=6),JunSun1+17,\"\"),IF(AND(YEAR(JunSun1+24)=CalendarYear,MONTH(JunSun1+24)=6),JunSun1+24,\"\"))","v":"2020-06-23"},{"$f":"IF(DAY(JunSun1)=1,IF(AND(YEAR(JunSun1+18)=CalendarYear,MONTH(JunSun1+18)=6),JunSun1+18,\"\"),IF(AND(YEAR(JunSun1+25)=CalendarYear,MONTH(JunSun1+25)=6),JunSun1+25,\"\"))","v":"2020-06-24"},{"$f":"IF(DAY(JunSun1)=1,IF(AND(YEAR(JunSun1+19)=CalendarYear,MONTH(JunSun1+19)=6),JunSun1+19,\"\"),IF(AND(YEAR(JunSun1+26)=CalendarYear,MONTH(JunSun1+26)=6),JunSun1+26,\"\"))","v":"2020-06-25"},{"$f":"IF(DAY(JunSun1)=1,IF(AND(YEAR(JunSun1+20)=CalendarYear,MONTH(JunSun1+20)=6),JunSun1+20,\"\"),IF(AND(YEAR(JunSun1+27)=CalendarYear,MONTH(JunSun1+27)=6),JunSun1+27,\"\"))","v":"2020-06-26"},{"$f":"IF(DAY(JunSun1)=1,IF(AND(YEAR(JunSun1+21)=CalendarYear,MONTH(JunSun1+21)=6),JunSun1+21,\"\"),IF(AND(YEAR(JunSun1+28)=CalendarYear,MONTH(JunSun1+28)=6),JunSun1+28,\"\"))","v":"2020-06-27"}]
[null,null,{"$f":"IF(DAY(MaySun1)=1,IF(AND(YEAR(MaySun1+22)=CalendarYear,MONTH(MaySun1+22)=5),MaySun1+22,\"\"),IF(AND(YEAR(MaySun1+29)=CalendarYear,MONTH(MaySun1+29)=5),MaySun1+29,\"\"))","v":"2020-05-24"},{"$f":"IF(DAY(MaySun1)=1,IF(AND(YEAR(MaySun1+23)=CalendarYear,MONTH(MaySun1+23)=5),MaySun1+23,\"\"),IF(AND(YEAR(MaySun1+30)=CalendarYear,MONTH(MaySun1+30)=5),MaySun1+30,\"\"))","v":"2020-05-25"},{"$f":"IF(DAY(MaySun1)=1,IF(AND(YEAR(MaySun1+24)=CalendarYear,MONTH(MaySun1+24)=5),MaySun1+24,\"\"),IF(AND(YEAR(MaySun1+31)=CalendarYear,MONTH(MaySun1+31)=5),MaySun1+31,\"\"))","v":"2020-05-26"},{"$f":"IF(DAY(MaySun1)=1,IF(AND(YEAR(MaySun1+25)=CalendarYear,MONTH(MaySun1+25)=5),MaySun1+25,\"\"),IF(AND(YEAR(MaySun1+32)=CalendarYear,MONTH(MaySun1+32)=5),MaySun1+32,\"\"))","v":"2020-05-27"},{"$f":"IF(DAY(MaySun1)=1,IF(AND(YEAR(MaySun1+26)=CalendarYear,MONTH(MaySun1+26)=5),MaySun1+26,\"\"),IF(AND(YEAR(MaySun1+33)=CalendarYear,MONTH(MaySun1+33)=5),MaySun1+33,\"\"))","v":"2020-05-28"},{"$f":"IF(DAY(MaySun1)=1,IF(AND(YEAR(MaySun1+27)=CalendarYear,MONTH(MaySun1+27)=5),MaySun1+27,\"\"),IF(AND(YEAR(MaySun1+34)=CalendarYear,MONTH(MaySun1+34)=5),MaySun1+34,\"\"))","v":"2020-05-29"},{"$f":"IF(DAY(MaySun1)=1,IF(AND(YEAR(MaySun1+28)=CalendarYear,MONTH(MaySun1+28)=5),MaySun1+28,\"\"),IF(AND(YEAR(MaySun1+35)=CalendarYear,MONTH(MaySun1+35)=5),MaySun1+35,\"\"))","v":"2020-05-30"},null,{"$f":"IF(DAY(JunSun1)=1,IF(AND(YEAR(JunSun1+22)=CalendarYear,MONTH(JunSun1+22)=6),JunSun1+22,\"\"),IF(AND(YEAR(JunSun1+29)=CalendarYear,MONTH(JunSun1+29)=6),JunSun1+29,\"\"))","v":"2020-06-28"},{"$f":"IF(DAY(JunSun1)=1,IF(AND(YEAR(JunSun1+23)=CalendarYear,MONTH(JunSun1+23)=6),JunSun1+23,\"\"),IF(AND(YEAR(JunSun1+30)=CalendarYear,MONTH(JunSun1+30)=6),JunSun1+30,\"\"))","v":"2020-06-29"},{"$f":"IF(DAY(JunSun1)=1,IF(AND(YEAR(JunSun1+24)=CalendarYear,MONTH(JunSun1+24)=6),JunSun1+24,\"\"),IF(AND(YEAR(JunSun1+31)=CalendarYear,MONTH(JunSun1+31)=6),JunSun1+31,\"\"))","v":"2020-06-30"},{"$f":"IF(DAY(JunSun1)=1,IF(AND(YEAR(JunSun1+25)=CalendarYear,MONTH(JunSun1+25)=6),JunSun1+25,\"\"),IF(AND(YEAR(JunSun1+32)=CalendarYear,MONTH(JunSun1+32)=6),JunSun1+32,\"\"))","v":""},{"$f":"IF(DAY(JunSun1)=1,IF(AND(YEAR(JunSun1+26)=CalendarYear,MONTH(JunSun1+26)=6),JunSun1+26,\"\"),IF(AND(YEAR(JunSun1+33)=CalendarYear,MONTH(JunSun1+33)=6),JunSun1+33,\"\"))","v":""},{"$f":"IF(DAY(JunSun1)=1,IF(AND(YEAR(JunSun1+27)=CalendarYear,MONTH(JunSun1+27)=6),JunSun1+27,\"\"),IF(AND(YEAR(JunSun1+34)=CalendarYear,MONTH(JunSun1+34)=6),JunSun1+34,\"\"))","v":""},{"$f":"IF(DAY(JunSun1)=1,IF(AND(YEAR(JunSun1+28)=CalendarYear,MONTH(JunSun1+28)=6),JunSun1+28,\"\"),IF(AND(YEAR(JunSun1+35)=CalendarYear,MONTH(JunSun1+35)=6),JunSun1+35,\"\"))","v":""}]
[null,null,{"$f":"IF(DAY(MaySun1)=1,IF(AND(YEAR(MaySun1+29)=CalendarYear,MONTH(MaySun1+29)=5),MaySun1+29,\"\"),IF(AND(YEAR(MaySun1+36)=CalendarYear,MONTH(MaySun1+36)=5),MaySun1+36,\"\"))","v":"2020-05-31"},{"$f":"IF(DAY(MaySun1)=1,IF(AND(YEAR(MaySun1+30)=CalendarYear,MONTH(MaySun1+30)=5),MaySun1+30,\"\"),IF(AND(YEAR(MaySun1+37)=CalendarYear,MONTH(MaySun1+37)=5),MaySun1+37,\"\"))","v":""},{"$f":"IF(DAY(MaySun1)=1,IF(AND(YEAR(MaySun1+31)=CalendarYear,MONTH(MaySun1+31)=5),MaySun1+31,\"\"),IF(AND(YEAR(MaySun1+38)=CalendarYear,MONTH(MaySun1+38)=5),MaySun1+38,\"\"))","v":""},{"$f":"IF(DAY(MaySun1)=1,IF(AND(YEAR(MaySun1+32)=CalendarYear,MONTH(MaySun1+32)=5),MaySun1+32,\"\"),IF(AND(YEAR(MaySun1+39)=CalendarYear,MONTH(MaySun1+39)=5),MaySun1+39,\"\"))","v":""},{"$f":"IF(DAY(MaySun1)=1,IF(AND(YEAR(MaySun1+33)=CalendarYear,MONTH(MaySun1+33)=5),MaySun1+33,\"\"),IF(AND(YEAR(MaySun1+40)=CalendarYear,MONTH(MaySun1+40)=5),MaySun1+40,\"\"))","v":""},{"$f":"IF(DAY(MaySun1)=1,IF(AND(YEAR(MaySun1+34)=CalendarYear,MONTH(MaySun1+34)=5),MaySun1+34,\"\"),IF(AND(YEAR(MaySun1+41)=CalendarYear,MONTH(MaySun1+41)=5),MaySun1+41,\"\"))","v":""},{"$f":"IF(DAY(MaySun1)=1,IF(AND(YEAR(MaySun1+35)=CalendarYear,MONTH(MaySun1+35)=5),MaySun1+35,\"\"),IF(AND(YEAR(MaySun1+42)=CalendarYear,MONTH(MaySun1+42)=5),MaySun1+42,\"\"))","v":""},null,{"$f":"IF(DAY(JunSun1)=1,IF(AND(YEAR(JunSun1+29)=CalendarYear,MONTH(JunSun1+29)=6),JunSun1+29,\"\"),IF(AND(YEAR(JunSun1+36)=CalendarYear,MONTH(JunSun1+36)=6),JunSun1+36,\"\"))","v":""},{"$f":"IF(DAY(JunSun1)=1,IF(AND(YEAR(JunSun1+30)=CalendarYear,MONTH(JunSun1+30)=6),JunSun1+30,\"\"),IF(AND(YEAR(JunSun1+37)=CalendarYear,MONTH(JunSun1+37)=6),JunSun1+37,\"\"))","v":""},{"$f":"IF(DAY(JunSun1)=1,IF(AND(YEAR(JunSun1+31)=CalendarYear,MONTH(JunSun1+31)=6),JunSun1+31,\"\"),IF(AND(YEAR(JunSun1+38)=CalendarYear,MONTH(JunSun1+38)=6),JunSun1+38,\"\"))","v":""},{"$f":"IF(DAY(JunSun1)=1,IF(AND(YEAR(JunSun1+32)=CalendarYear,MONTH(JunSun1+32)=6),JunSun1+32,\"\"),IF(AND(YEAR(JunSun1+39)=CalendarYear,MONTH(JunSun1+39)=6),JunSun1+39,\"\"))","v":""},{"$f":"IF(DAY(JunSun1)=1,IF(AND(YEAR(JunSun1+33)=CalendarYear,MONTH(JunSun1+33)=6),JunSun1+33,\"\"),IF(AND(YEAR(JunSun1+40)=CalendarYear,MONTH(JunSun1+40)=6),JunSun1+40,\"\"))","v":""},{"$f":"IF(DAY(JunSun1)=1,IF(AND(YEAR(JunSun1+34)=CalendarYear,MONTH(JunSun1+34)=6),JunSun1+34,\"\"),IF(AND(YEAR(JunSun1+41)=CalendarYear,MONTH(JunSun1+41)=6),JunSun1+41,\"\"))","v":""},{"$f":"IF(DAY(JunSun1)=1,IF(AND(YEAR(JunSun1+35)=CalendarYear,MONTH(JunSun1+35)=6),JunSun1+35,\"\"),IF(AND(YEAR(JunSun1+42)=CalendarYear,MONTH(JunSun1+42)=6),JunSun1+42,\"\"))","v":""}]
[]
["התווית 'יולי' מופיעה בתא C30, והתווית 'אוגוסט' מופיעה בתא K30",null,"יולי",{"$nulls":7},"אוגוסט"]
["טבלת לוח השנה של יולי מופיעה בתאים C31 עד I37. טבלת לוח השנה של אוגוסט מופיעה בתאים K31 עד Q37. ההוראה הבאה מופיעה בתא A39",null,"א'","ב'","ג'","ד'","ה'","ו'","ש'",null,"א'","ב'","ג'","ד'","ה'","ו'","ש'"]
[null,null,{"$f":"IF(DAY(JulSun1)=1,\"\",IF(AND(YEAR(JulSun1+1)=CalendarYear,MONTH(JulSun1+1)=7),JulSun1+1,\"\"))","v":""},{"$f":"IF(DAY(JulSun1)=1,\"\",IF(AND(YEAR(JulSun1+2)=CalendarYear,MONTH(JulSun1+2)=7),JulSun1+2,\"\"))","v":""},{"$f":"IF(DAY(JulSun1)=1,\"\",IF(AND(YEAR(JulSun1+3)=CalendarYear,MONTH(JulSun1+3)=7),JulSun1+3,\"\"))","v":""},{"$f":"IF(DAY(JulSun1)=1,\"\",IF(AND(YEAR(JulSun1+4)=CalendarYear,MONTH(JulSun1+4)=7),JulSun1+4,\"\"))","v":"2020-07-01"},{"$f":"IF(DAY(JulSun1)=1,\"\",IF(AND(YEAR(JulSun1+5)=CalendarYear,MONTH(JulSun1+5)=7),JulSun1+5,\"\"))","v":"2020-07-02"},{"$f":"IF(DAY(JulSun1)=1,\"\",IF(AND(YEAR(JulSun1+6)=CalendarYear,MONTH(JulSun1+6)=7),JulSun1+6,\"\"))","v":"2020-07-03"},{"$f":"IF(DAY(JulSun1)=1,IF(AND(YEAR(JulSun1)=CalendarYear,MONTH(JulSun1)=7),JulSun1,\"\"),IF(AND(YEAR(JulSun1+7)=CalendarYear,MONTH(JulSun1+7)=7),JulSun1+7,\"\"))","v":"2020-07-04"},null,{"$f":"IF(DAY(AugSun1)=1,\"\",IF(AND(YEAR(AugSun1+1)=CalendarYear,MONTH(AugSun1+1)=8),AugSun1+1,\"\"))","v":""},{"$f":"IF(DAY(AugSun1)=1,\"\",IF(AND(YEAR(AugSun1+2)=CalendarYear,MONTH(AugSun1+2)=8),AugSun1+2,\"\"))","v":""},{"$f":"IF(DAY(AugSun1)=1,\"\",IF(AND(YEAR(AugSun1+3)=CalendarYear,MONTH(AugSun1+3)=8),AugSun1+3,\"\"))","v":""},{"$f":"IF(DAY(AugSun1)=1,\"\",IF(AND(YEAR(AugSun1+4)=CalendarYear,MONTH(AugSun1+4)=8),AugSun1+4,\"\"))","v":""},{"$f":"IF(DAY(AugSun1)=1,\"\",IF(AND(YEAR(AugSun1+5)=CalendarYear,MONTH(AugSun1+5)=8),AugSun1+5,\"\"))","v":""},{"$f":"IF(DAY(AugSun1)=1,\"\",IF(AND(YEAR(AugSun1+6)=CalendarYear,MONTH(AugSun1+6)=8),AugSun1+6,\"\"))","v":""},{"$f":"IF(DAY(AugSun1)=1,IF(AND(YEAR(AugSun1)=CalendarYear,MONTH(AugSun1)=8),AugSun1,\"\"),IF(AND(YEAR(AugSun1+7)=CalendarYear,MONTH(AugSun1+7)=8),AugSun1+7,\"\"))","v":"2020-08-01"}]
[null,null,{"$f":"IF(DAY(JulSun1)=1,IF(AND(YEAR(JulSun1+1)=CalendarYear,MONTH(JulSun1+1)=7),JulSun1+1,\"\"),IF(AND(YEAR(JulSun1+8)=CalendarYear,MONTH(JulSun1+8)=7),JulSun1+8,\"\"))","v":"2020-07-05"},{"$f":"IF(DAY(JulSun1)=1,IF(AND(YEAR(JulSun1+2)=CalendarYear,MONTH(JulSun1+2)=7),JulSun1+2,\"\"),IF(AND(YEAR(JulSun1+9)=CalendarYear,MONTH(JulSun1+9)=7),JulSun1+9,\"\"))","v":"2020-07-06"},{"$f":"IF(DAY(JulSun1)=1,IF(AND(YEAR(JulSun1+3)=CalendarYear,MONTH(JulSun1+3)=7),JulSun1+3,\"\"),IF(AND(YEAR(JulSun1+10)=CalendarYear,MONTH(JulSun1+10)=7),JulSun1+10,\"\"))","v":"2020-07-07"},{"$f":"IF(DAY(JulSun1)=1,IF(AND(YEAR(JulSun1+4)=CalendarYear,MONTH(JulSun1+4)=7),JulSun1+4,\"\"),IF(AND(YEAR(JulSun1+11)=CalendarYear,MONTH(JulSun1+11)=7),JulSun1+11,\"\"))","v":"2020-07-08"},{"$f":"IF(DAY(JulSun1)=1,IF(AND(YEAR(JulSun1+5)=CalendarYear,MONTH(JulSun1+5)=7),JulSun1+5,\"\"),IF(AND(YEAR(JulSun1+12)=CalendarYear,MONTH(JulSun1+12)=7),JulSun1+12,\"\"))","v":"2020-07-09"},{"$f":"IF(DAY(JulSun1)=1,IF(AND(YEAR(JulSun1+6)=CalendarYear,MONTH(JulSun1+6)=7),JulSun1+6,\"\"),IF(AND(YEAR(JulSun1+13)=CalendarYear,MONTH(JulSun1+13)=7),JulSun1+13,\"\"))","v":"2020-07-10"},{"$f":"IF(DAY(JulSun1)=1,IF(AND(YEAR(JulSun1+7)=CalendarYear,MONTH(JulSun1+7)=7),JulSun1+7,\"\"),IF(AND(YEAR(JulSun1+14)=CalendarYear,MONTH(JulSun1+14)=7),JulSun1+14,\"\"))","v":"2020-07-11"},null,{"$f":"IF(DAY(AugSun1)=1,IF(AND(YEAR(AugSun1+1)=CalendarYear,MONTH(AugSun1+1)=8),AugSun1+1,\"\"),IF(AND(YEAR(AugSun1+8)=CalendarYear,MONTH(AugSun1+8)=8),AugSun1+8,\"\"))","v":"2020-08-02"},{"$f":"IF(DAY(AugSun1)=1,IF(AND(YEAR(AugSun1+2)=CalendarYear,MONTH(AugSun1+2)=8),AugSun1+2,\"\"),IF(AND(YEAR(AugSun1+9)=CalendarYear,MONTH(AugSun1+9)=8),AugSun1+9,\"\"))","v":"2020-08-03"},{"$f":"IF(DAY(AugSun1)=1,IF(AND(YEAR(AugSun1+3)=CalendarYear,MONTH(AugSun1+3)=8),AugSun1+3,\"\"),IF(AND(YEAR(AugSun1+10)=CalendarYear,MONTH(AugSun1+10)=8),AugSun1+10,\"\"))","v":"2020-08-04"},{"$f":"IF(DAY(AugSun1)=1,IF(AND(YEAR(AugSun1+4)=CalendarYear,MONTH(AugSun1+4)=8),AugSun1+4,\"\"),IF(AND(YEAR(AugSun1+11)=CalendarYear,MONTH(AugSun1+11)=8),AugSun1+11,\"\"))","v":"2020-08-05"},{"$f":"IF(DAY(AugSun1)=1,IF(AND(YEAR(AugSun1+5)=CalendarYear,MONTH(AugSun1+5)=8),AugSun1+5,\"\"),IF(AND(YEAR(AugSun1+12)=CalendarYear,MONTH(AugSun1+12)=8),AugSun1+12,\"\"))","v":"2020-08-06"},{"$f":"IF(DAY(AugSun1)=1,IF(AND(YEAR(AugSun1+6)=CalendarYear,MONTH(AugSun1+6)=8),AugSun1+6,\"\"),IF(AND(YEAR(AugSun1+13)=CalendarYear,MONTH(AugSun1+13)=8),AugSun1+13,\"\"))","v":"2020-08-07"},{"$f":"IF(DAY(AugSun1)=1,IF(AND(YEAR(AugSun1+7)=CalendarYear,MONTH(AugSun1+7)=8),AugSun1+7,\"\"),IF(AND(YEAR(AugSun1+14)=CalendarYear,MONTH(AugSun1+14)=8),AugSun1+14,\"\"))","v":"2020-08-08"}]
[null,null,{"$f":"IF(DAY(JulSun1)=1,IF(AND(YEAR(JulSun1+8)=CalendarYear,MONTH(JulSun1+8)=7),JulSun1+8,\"\"),IF(AND(YEAR(JulSun1+15)=CalendarYear,MONTH(JulSun1+15)=7),JulSun1+15,\"\"))","v":"2020-07-12"},{"$f":"IF(DAY(JulSun1)=1,IF(AND(YEAR(JulSun1+9)=CalendarYear,MONTH(JulSun1+9)=7),JulSun1+9,\"\"),IF(AND(YEAR(JulSun1+16)=CalendarYear,MONTH(JulSun1+16)=7),JulSun1+16,\"\"))","v":"2020-07-13"},{"$f":"IF(DAY(JulSun1)=1,IF(AND(YEAR(JulSun1+10)=CalendarYear,MONTH(JulSun1+10)=7),JulSun1+10,\"\"),IF(AND(YEAR(JulSun1+17)=CalendarYear,MONTH(JulSun1+17)=7),JulSun1+17,\"\"))","v":"2020-07-14"},{"$f":"IF(DAY(JulSun1)=1,IF(AND(YEAR(JulSun1+11)=CalendarYear,MONTH(JulSun1+11)=7),JulSun1+11,\"\"),IF(AND(YEAR(JulSun1+18)=CalendarYear,MONTH(JulSun1+18)=7),JulSun1+18,\"\"))","v":"2020-07-15"},{"$f":"IF(DAY(JulSun1)=1,IF(AND(YEAR(JulSun1+12)=CalendarYear,MONTH(JulSun1+12)=7),JulSun1+12,\"\"),IF(AND(YEAR(JulSun1+19)=CalendarYear,MONTH(JulSun1+19)=7),JulSun1+19,\"\"))","v":"2020-07-16"},{"$f":"IF(DAY(JulSun1)=1,IF(AND(YEAR(JulSun1+13)=CalendarYear,MONTH(JulSun1+13)=7),JulSun1+13,\"\"),IF(AND(YEAR(JulSun1+20)=CalendarYear,MONTH(JulSun1+20)=7),JulSun1+20,\"\"))","v":"2020-07-17"},{"$f":"IF(DAY(JulSun1)=1,IF(AND(YEAR(JulSun1+14)=CalendarYear,MONTH(JulSun1+14)=7),JulSun1+14,\"\"),IF(AND(YEAR(JulSun1+21)=CalendarYear,MONTH(JulSun1+21)=7),JulSun1+21,\"\"))","v":"2020-07-18"},null,{"$f":"IF(DAY(AugSun1)=1,IF(AND(YEAR(AugSun1+8)=CalendarYear,MONTH(AugSun1+8)=8),AugSun1+8,\"\"),IF(AND(YEAR(AugSun1+15)=CalendarYear,MONTH(AugSun1+15)=8),AugSun1+15,\"\"))","v":"2020-08-09"},{"$f":"IF(DAY(AugSun1)=1,IF(AND(YEAR(AugSun1+9)=CalendarYear,MONTH(AugSun1+9)=8),AugSun1+9,\"\"),IF(AND(YEAR(AugSun1+16)=CalendarYear,MONTH(AugSun1+16)=8),AugSun1+16,\"\"))","v":"2020-08-10"},{"$f":"IF(DAY(AugSun1)=1,IF(AND(YEAR(AugSun1+10)=CalendarYear,MONTH(AugSun1+10)=8),AugSun1+10,\"\"),IF(AND(YEAR(AugSun1+17)=CalendarYear,MONTH(AugSun1+17)=8),AugSun1+17,\"\"))","v":"2020-08-11"},{"$f":"IF(DAY(AugSun1)=1,IF(AND(YEAR(AugSun1+11)=CalendarYear,MONTH(AugSun1+11)=8),AugSun1+11,\"\"),IF(AND(YEAR(AugSun1+18)=CalendarYear,MONTH(AugSun1+18)=8),AugSun1+18,\"\"))","v":"2020-08-12"},{"$f":"IF(DAY(AugSun1)=1,IF(AND(YEAR(AugSun1+12)=CalendarYear,MONTH(AugSun1+12)=8),AugSun1+12,\"\"),IF(AND(YEAR(AugSun1+19)=CalendarYear,MONTH(AugSun1+19)=8),AugSun1+19,\"\"))","v":"2020-08-13"},{"$f":"IF(DAY(AugSun1)=1,IF(AND(YEAR(AugSun1+13)=CalendarYear,MONTH(AugSun1+13)=8),AugSun1+13,\"\"),IF(AND(YEAR(AugSun1+20)=CalendarYear,MONTH(AugSun1+20)=8),AugSun1+20,\"\"))","v":"2020-08-14"},{"$f":"IF(DAY(AugSun1)=1,IF(AND(YEAR(AugSun1+14)=CalendarYear,MONTH(AugSun1+14)=8),AugSun1+14,\"\"),IF(AND(YEAR(AugSun1+21)=CalendarYear,MONTH(AugSun1+21)=8),AugSun1+21,\"\"))","v":"2020-08-15"}]
[null,null,{"$f":"IF(DAY(JulSun1)=1,IF(AND(YEAR(JulSun1+15)=CalendarYear,MONTH(JulSun1+15)=7),JulSun1+15,\"\"),IF(AND(YEAR(JulSun1+22)=CalendarYear,MONTH(JulSun1+22)=7),JulSun1+22,\"\"))","v":"2020-07-19"},{"$f":"IF(DAY(JulSun1)=1,IF(AND(YEAR(JulSun1+16)=CalendarYear,MONTH(JulSun1+16)=7),JulSun1+16,\"\"),IF(AND(YEAR(JulSun1+23)=CalendarYear,MONTH(JulSun1+23)=7),JulSun1+23,\"\"))","v":"2020-07-20"},{"$f":"IF(DAY(JulSun1)=1,IF(AND(YEAR(JulSun1+17)=CalendarYear,MONTH(JulSun1+17)=7),JulSun1+17,\"\"),IF(AND(YEAR(JulSun1+24)=CalendarYear,MONTH(JulSun1+24)=7),JulSun1+24,\"\"))","v":"2020-07-21"},{"$f":"IF(DAY(JulSun1)=1,IF(AND(YEAR(JulSun1+18)=CalendarYear,MONTH(JulSun1+18)=7),JulSun1+18,\"\"),IF(AND(YEAR(JulSun1+25)=CalendarYear,MONTH(JulSun1+25)=7),JulSun1+25,\"\"))","v":"2020-07-22"},{"$f":"IF(DAY(JulSun1)=1,IF(AND(YEAR(JulSun1+19)=CalendarYear,MONTH(JulSun1+19)=7),JulSun1+19,\"\"),IF(AND(YEAR(JulSun1+26)=CalendarYear,MONTH(JulSun1+26)=7),JulSun1+26,\"\"))","v":"2020-07-23"},{"$f":"IF(DAY(JulSun1)=1,IF(AND(YEAR(JulSun1+20)=CalendarYear,MONTH(JulSun1+20)=7),JulSun1+20,\"\"),IF(AND(YEAR(JulSun1+27)=CalendarYear,MONTH(JulSun1+27)=7),JulSun1+27,\"\"))","v":"2020-07-24"},{"$f":"IF(DAY(JulSun1)=1,IF(AND(YEAR(JulSun1+21)=CalendarYear,MONTH(JulSun1+21)=7),JulSun1+21,\"\"),IF(AND(YEAR(JulSun1+28)=CalendarYear,MONTH(JulSun1+28)=7),JulSun1+28,\"\"))","v":"2020-07-25"},null,{"$f":"IF(DAY(AugSun1)=1,IF(AND(YEAR(AugSun1+15)=CalendarYear,MONTH(AugSun1+15)=8),AugSun1+15,\"\"),IF(AND(YEAR(AugSun1+22)=CalendarYear,MONTH(AugSun1+22)=8),AugSun1+22,\"\"))","v":"2020-08-16"},{"$f":"IF(DAY(AugSun1)=1,IF(AND(YEAR(AugSun1+16)=CalendarYear,MONTH(AugSun1+16)=8),AugSun1+16,\"\"),IF(AND(YEAR(AugSun1+23)=CalendarYear,MONTH(AugSun1+23)=8),AugSun1+23,\"\"))","v":"2020-08-17"},{"$f":"IF(DAY(AugSun1)=1,IF(AND(YEAR(AugSun1+17)=CalendarYear,MONTH(AugSun1+17)=8),AugSun1+17,\"\"),IF(AND(YEAR(AugSun1+24)=CalendarYear,MONTH(AugSun1+24)=8),AugSun1+24,\"\"))","v":"2020-08-18"},{"$f":"IF(DAY(AugSun1)=1,IF(AND(YEAR(AugSun1+18)=CalendarYear,MONTH(AugSun1+18)=8),AugSun1+18,\"\"),IF(AND(YEAR(AugSun1+25)=CalendarYear,MONTH(AugSun1+25)=8),AugSun1+25,\"\"))","v":"2020-08-19"},{"$f":"IF(DAY(AugSun1)=1,IF(AND(YEAR(AugSun1+19)=CalendarYear,MONTH(AugSun1+19)=8),AugSun1+19,\"\"),IF(AND(YEAR(AugSun1+26)=CalendarYear,MONTH(AugSun1+26)=8),AugSun1+26,\"\"))","v":"2020-08-20"},{"$f":"IF(DAY(AugSun1)=1,IF(AND(YEAR(AugSun1+20)=CalendarYear,MONTH(AugSun1+20)=8),AugSun1+20,\"\"),IF(AND(YEAR(AugSun1+27)=CalendarYear,MONTH(AugSun1+27)=8),AugSun1+27,\"\"))","v":"2020-08-21"},{"$f":"IF(DAY(AugSun1)=1,IF(AND(YEAR(AugSun1+21)=CalendarYear,MONTH(AugSun1+21)=8),AugSun1+21,\"\"),IF(AND(YEAR(AugSun1+28)=CalendarYear,MONTH(AugSun1+28)=8),AugSun1+28,\"\"))","v":"2020-08-22"}]
[null,null,{"$f":"IF(DAY(JulSun1)=1,IF(AND(YEAR(JulSun1+22)=CalendarYear,MONTH(JulSun1+22)=7),JulSun1+22,\"\"),IF(AND(YEAR(JulSun1+29)=CalendarYear,MONTH(JulSun1+29)=7),JulSun1+29,\"\"))","v":"2020-07-26"},{"$f":"IF(DAY(JulSun1)=1,IF(AND(YEAR(JulSun1+23)=CalendarYear,MONTH(JulSun1+23)=7),JulSun1+23,\"\"),IF(AND(YEAR(JulSun1+30)=CalendarYear,MONTH(JulSun1+30)=7),JulSun1+30,\"\"))","v":"2020-07-27"},{"$f":"IF(DAY(JulSun1)=1,IF(AND(YEAR(JulSun1+24)=CalendarYear,MONTH(JulSun1+24)=7),JulSun1+24,\"\"),IF(AND(YEAR(JulSun1+31)=CalendarYear,MONTH(JulSun1+31)=7),JulSun1+31,\"\"))","v":"2020-07-28"},{"$f":"IF(DAY(JulSun1)=1,IF(AND(YEAR(JulSun1+25)=CalendarYear,MONTH(JulSun1+25)=7),JulSun1+25,\"\"),IF(AND(YEAR(JulSun1+32)=CalendarYear,MONTH(JulSun1+32)=7),JulSun1+32,\"\"))","v":"2020-07-29"},{"$f":"IF(DAY(JulSun1)=1,IF(AND(YEAR(JulSun1+26)=CalendarYear,MONTH(JulSun1+26)=7),JulSun1+26,\"\"),IF(AND(YEAR(JulSun1+33)=CalendarYear,MONTH(JulSun1+33)=7),JulSun1+33,\"\"))","v":"2020-07-30"},{"$f":"IF(DAY(JulSun1)=1,IF(AND(YEAR(JulSun1+27)=CalendarYear,MONTH(JulSun1+27)=7),JulSun1+27,\"\"),IF(AND(YEAR(JulSun1+34)=CalendarYear,MONTH(JulSun1+34)=7),JulSun1+34,\"\"))","v":"2020-07-31"},{"$f":"IF(DAY(JulSun1)=1,IF(AND(YEAR(JulSun1+28)=CalendarYear,MONTH(JulSun1+28)=7),JulSun1+28,\"\"),IF(AND(YEAR(JulSun1+35)=CalendarYear,MONTH(JulSun1+35)=7),JulSun1+35,\"\"))","v":""},null,{"$f":"IF(DAY(AugSun1)=1,IF(AND(YEAR(AugSun1+22)=CalendarYear,MONTH(AugSun1+22)=8),AugSun1+22,\"\"),IF(AND(YEAR(AugSun1+29)=CalendarYear,MONTH(AugSun1+29)=8),AugSun1+29,\"\"))","v":"2020-08-23"},{"$f":"IF(DAY(AugSun1)=1,IF(AND(YEAR(AugSun1+23)=CalendarYear,MONTH(AugSun1+23)=8),AugSun1+23,\"\"),IF(AND(YEAR(AugSun1+30)=CalendarYear,MONTH(AugSun1+30)=8),AugSun1+30,\"\"))","v":"2020-08-24"},{"$f":"IF(DAY(AugSun1)=1,IF(AND(YEAR(AugSun1+24)=CalendarYear,MONTH(AugSun1+24)=8),AugSun1+24,\"\"),IF(AND(YEAR(AugSun1+31)=CalendarYear,MONTH(AugSun1+31)=8),AugSun1+31,\"\"))","v":"2020-08-25"},{"$f":"IF(DAY(AugSun1)=1,IF(AND(YEAR(AugSun1+25)=CalendarYear,MONTH(AugSun1+25)=8),AugSun1+25,\"\"),IF(AND(YEAR(AugSun1+32)=CalendarYear,MONTH(AugSun1+32)=8),AugSun1+32,\"\"))","v":"2020-08-26"},{"$f":"IF(DAY(AugSun1)=1,IF(AND(YEAR(AugSun1+26)=CalendarYear,MONTH(AugSun1+26)=8),AugSun1+26,\"\"),IF(AND(YEAR(AugSun1+33)=CalendarYear,MONTH(AugSun1+33)=8),AugSun1+33,\"\"))","v":"2020-08-27"},{"$f":"IF(DAY(AugSun1)=1,IF(AND(YEAR(AugSun1+27)=CalendarYear,MONTH(AugSun1+27)=8),AugSun1+27,\"\"),IF(AND(YEAR(AugSun1+34)=CalendarYear,MONTH(AugSun1+34)=8),AugSun1+34,\"\"))","v":"2020-08-28"},{"$f":"IF(DAY(AugSun1)=1,IF(AND(YEAR(AugSun1+28)=CalendarYear,MONTH(AugSun1+28)=8),AugSun1+28,\"\"),IF(AND(YEAR(AugSun1+35)=CalendarYear,MONTH(AugSun1+35)=8),AugSun1+35,\"\"))","v":"2020-08-29"}]
[null,null,{"$f":"IF(DAY(JulSun1)=1,IF(AND(YEAR(JulSun1+29)=CalendarYear,MONTH(JulSun1+29)=7),JulSun1+29,\"\"),IF(AND(YEAR(JulSun1+36)=CalendarYear,MONTH(JulSun1+36)=7),JulSun1+36,\"\"))","v":""},{"$f":"IF(DAY(JulSun1)=1,IF(AND(YEAR(JulSun1+30)=CalendarYear,MONTH(JulSun1+30)=7),JulSun1+30,\"\"),IF(AND(YEAR(JulSun1+37)=CalendarYear,MONTH(JulSun1+37)=7),JulSun1+37,\"\"))","v":""},{"$f":"IF(DAY(JulSun1)=1,IF(AND(YEAR(JulSun1+31)=CalendarYear,MONTH(JulSun1+31)=7),JulSun1+31,\"\"),IF(AND(YEAR(JulSun1+38)=CalendarYear,MONTH(JulSun1+38)=7),JulSun1+38,\"\"))","v":""},{"$f":"IF(DAY(JulSun1)=1,IF(AND(YEAR(JulSun1+32)=CalendarYear,MONTH(JulSun1+32)=7),JulSun1+32,\"\"),IF(AND(YEAR(JulSun1+39)=CalendarYear,MONTH(JulSun1+39)=7),JulSun1+39,\"\"))","v":""},{"$f":"IF(DAY(JulSun1)=1,IF(AND(YEAR(JulSun1+33)=CalendarYear,MONTH(JulSun1+33)=7),JulSun1+33,\"\"),IF(AND(YEAR(JulSun1+40)=CalendarYear,MONTH(JulSun1+40)=7),JulSun1+40,\"\"))","v":""},{"$f":"IF(DAY(JulSun1)=1,IF(AND(YEAR(JulSun1+34)=CalendarYear,MONTH(JulSun1+34)=7),JulSun1+34,\"\"),IF(AND(YEAR(JulSun1+41)=CalendarYear,MONTH(JulSun1+41)=7),JulSun1+41,\"\"))","v":""},{"$f":"IF(DAY(JulSun1)=1,IF(AND(YEAR(JulSun1+35)=CalendarYear,MONTH(JulSun1+35)=7),JulSun1+35,\"\"),IF(AND(YEAR(JulSun1+42)=CalendarYear,MONTH(JulSun1+42)=7),JulSun1+42,\"\"))","v":""},null,{"$f":"IF(DAY(AugSun1)=1,IF(AND(YEAR(AugSun1+29)=CalendarYear,MONTH(AugSun1+29)=8),AugSun1+29,\"\"),IF(AND(YEAR(AugSun1+36)=CalendarYear,MONTH(AugSun1+36)=8),AugSun1+36,\"\"))","v":"2020-08-30"},{"$f":"IF(DAY(AugSun1)=1,IF(AND(YEAR(AugSun1+30)=CalendarYear,MONTH(AugSun1+30)=8),AugSun1+30,\"\"),IF(AND(YEAR(AugSun1+37)=CalendarYear,MONTH(AugSun1+37)=8),AugSun1+37,\"\"))","v":"2020-08-31"},{"$f":"IF(DAY(AugSun1)=1,IF(AND(YEAR(AugSun1+31)=CalendarYear,MONTH(AugSun1+31)=8),AugSun1+31,\"\"),IF(AND(YEAR(AugSun1+38)=CalendarYear,MONTH(AugSun1+38)=8),AugSun1+38,\"\"))","v":""},{"$f":"IF(DAY(AugSun1)=1,IF(AND(YEAR(AugSun1+32)=CalendarYear,MONTH(AugSun1+32)=8),AugSun1+32,\"\"),IF(AND(YEAR(AugSun1+39)=CalendarYear,MONTH(AugSun1+39)=8),AugSun1+39,\"\"))","v":""},{"$f":"IF(DAY(AugSun1)=1,IF(AND(YEAR(AugSun1+33)=CalendarYear,MONTH(AugSun1+33)=8),AugSun1+33,\"\"),IF(AND(YEAR(AugSun1+40)=CalendarYear,MONTH(AugSun1+40)=8),AugSun1+40,\"\"))","v":""},{"$f":"IF(DAY(AugSun1)=1,IF(AND(YEAR(AugSun1+34)=CalendarYear,MONTH(AugSun1+34)=8),AugSun1+34,\"\"),IF(AND(YEAR(AugSun1+41)=CalendarYear,MONTH(AugSun1+41)=8),AugSun1+41,\"\"))","v":""},{"$f":"IF(DAY(AugSun1)=1,IF(AND(YEAR(AugSun1+35)=CalendarYear,MONTH(AugSun1+35)=8),AugSun1+35,\"\"),IF(AND(YEAR(AugSun1+42)=CalendarYear,MONTH(AugSun1+42)=8),AugSun1+42,\"\"))","v":""}]
[]
["התווית 'ספטמבר' מופיעה בתא C39, והתווית 'אוקטובר' מופיעה בתא K39",null,"ספטמבר",{"$nulls":7},"אוקטובר"]
["טבלת לוח השנה של ספטמבר מופיעה בתאים C40 עד I46. טבלת לוח השנה של אוקטובר מופיעה בתאים K40 עד Q46. ההוראה הבאה מופיעה בתא A44",null,"א'","ב'","ג'","ד'","ה'","ו'","ש'",null,"א'","ב'","ג'","ד'","ה'","ו'","ש'"]
[null,null,{"$f":"IF(DAY(SepSun1)=1,\"\",IF(AND(YEAR(SepSun1+1)=CalendarYear,MONTH(SepSun1+1)=9),SepSun1+1,\"\"))","v":""},{"$f":"IF(DAY(SepSun1)=1,\"\",IF(AND(YEAR(SepSun1+2)=CalendarYear,MONTH(SepSun1+2)=9),SepSun1+2,\"\"))","v":""},{"$f":"IF(DAY(SepSun1)=1,\"\",IF(AND(YEAR(SepSun1+3)=CalendarYear,MONTH(SepSun1+3)=9),SepSun1+3,\"\"))","v":"2020-09-01"},{"$f":"IF(DAY(SepSun1)=1,\"\",IF(AND(YEAR(SepSun1+4)=CalendarYear,MONTH(SepSun1+4)=9),SepSun1+4,\"\"))","v":"2020-09-02"},{"$f":"IF(DAY(SepSun1)=1,\"\",IF(AND(YEAR(SepSun1+5)=CalendarYear,MONTH(SepSun1+5)=9),SepSun1+5,\"\"))","v":"2020-09-03"},{"$f":"IF(DAY(SepSun1)=1,\"\",IF(AND(YEAR(SepSun1+6)=CalendarYear,MONTH(SepSun1+6)=9),SepSun1+6,\"\"))","v":"2020-09-04"},{"$f":"IF(DAY(SepSun1)=1,IF(AND(YEAR(SepSun1)=CalendarYear,MONTH(SepSun1)=9),SepSun1,\"\"),IF(AND(YEAR(SepSun1+7)=CalendarYear,MONTH(SepSun1+7)=9),SepSun1+7,\"\"))","v":"2020-09-05"},null,{"$f":"IF(DAY(OctSun1)=1,\"\",IF(AND(YEAR(OctSun1+1)=CalendarYear,MONTH(OctSun1+1)=10),OctSun1+1,\"\"))","v":""},{"$f":"IF(DAY(OctSun1)=1,\"\",IF(AND(YEAR(OctSun1+2)=CalendarYear,MONTH(OctSun1+2)=10),OctSun1+2,\"\"))","v":""},{"$f":"IF(DAY(OctSun1)=1,\"\",IF(AND(YEAR(OctSun1+3)=CalendarYear,MONTH(OctSun1+3)=10),OctSun1+3,\"\"))","v":""},{"$f":"IF(DAY(OctSun1)=1,\"\",IF(AND(YEAR(OctSun1+4)=CalendarYear,MONTH(OctSun1+4)=10),OctSun1+4,\"\"))","v":""},{"$f":"IF(DAY(OctSun1)=1,\"\",IF(AND(YEAR(OctSun1+5)=CalendarYear,MONTH(OctSun1+5)=10),OctSun1+5,\"\"))","v":"2020-10-01"},{"$f":"IF(DAY(OctSun1)=1,\"\",IF(AND(YEAR(OctSun1+6)=CalendarYear,MONTH(OctSun1+6)=10),OctSun1+6,\"\"))","v":"2020-10-02"},{"$f":"IF(DAY(OctSun1)=1,IF(AND(YEAR(OctSun1)=CalendarYear,MONTH(OctSun1)=10),OctSun1,\"\"),IF(AND(YEAR(OctSun1+7)=CalendarYear,MONTH(OctSun1+7)=10),OctSun1+7,\"\"))","v":"2020-10-03"}]
[null,null,{"$f":"IF(DAY(SepSun1)=1,IF(AND(YEAR(SepSun1+1)=CalendarYear,MONTH(SepSun1+1)=9),SepSun1+1,\"\"),IF(AND(YEAR(SepSun1+8)=CalendarYear,MONTH(SepSun1+8)=9),SepSun1+8,\"\"))","v":"2020-09-06"},{"$f":"IF(DAY(SepSun1)=1,IF(AND(YEAR(SepSun1+2)=CalendarYear,MONTH(SepSun1+2)=9),SepSun1+2,\"\"),IF(AND(YEAR(SepSun1+9)=CalendarYear,MONTH(SepSun1+9)=9),SepSun1+9,\"\"))","v":"2020-09-07"},{"$f":"IF(DAY(SepSun1)=1,IF(AND(YEAR(SepSun1+3)=CalendarYear,MONTH(SepSun1+3)=9),SepSun1+3,\"\"),IF(AND(YEAR(SepSun1+10)=CalendarYear,MONTH(SepSun1+10)=9),SepSun1+10,\"\"))","v":"2020-09-08"},{"$f":"IF(DAY(SepSun1)=1,IF(AND(YEAR(SepSun1+4)=CalendarYear,MONTH(SepSun1+4)=9),SepSun1+4,\"\"),IF(AND(YEAR(SepSun1+11)=CalendarYear,MONTH(SepSun1+11)=9),SepSun1+11,\"\"))","v":"2020-09-09"},{"$f":"IF(DAY(SepSun1)=1,IF(AND(YEAR(SepSun1+5)=CalendarYear,MONTH(SepSun1+5)=9),SepSun1+5,\"\"),IF(AND(YEAR(SepSun1+12)=CalendarYear,MONTH(SepSun1+12)=9),SepSun1+12,\"\"))","v":"2020-09-10"},{"$f":"IF(DAY(SepSun1)=1,IF(AND(YEAR(SepSun1+6)=CalendarYear,MONTH(SepSun1+6)=9),SepSun1+6,\"\"),IF(AND(YEAR(SepSun1+13)=CalendarYear,MONTH(SepSun1+13)=9),SepSun1+13,\"\"))","v":"2020-09-11"},{"$f":"IF(DAY(SepSun1)=1,IF(AND(YEAR(SepSun1+7)=CalendarYear,MONTH(SepSun1+7)=9),SepSun1+7,\"\"),IF(AND(YEAR(SepSun1+14)=CalendarYear,MONTH(SepSun1+14)=9),SepSun1+14,\"\"))","v":"2020-09-12"},null,{"$f":"IF(DAY(OctSun1)=1,IF(AND(YEAR(OctSun1+1)=CalendarYear,MONTH(OctSun1+1)=10),OctSun1+1,\"\"),IF(AND(YEAR(OctSun1+8)=CalendarYear,MONTH(OctSun1+8)=10),OctSun1+8,\"\"))","v":"2020-10-04"},{"$f":"IF(DAY(OctSun1)=1,IF(AND(YEAR(OctSun1+2)=CalendarYear,MONTH(OctSun1+2)=10),OctSun1+2,\"\"),IF(AND(YEAR(OctSun1+9)=CalendarYear,MONTH(OctSun1+9)=10),OctSun1+9,\"\"))","v":"2020-10-05"},{"$f":"IF(DAY(OctSun1)=1,IF(AND(YEAR(OctSun1+3)=CalendarYear,MONTH(OctSun1+3)=10),OctSun1+3,\"\"),IF(AND(YEAR(OctSun1+10)=CalendarYear,MONTH(OctSun1+10)=10),OctSun1+10,\"\"))","v":"2020-10-06"},{"$f":"IF(DAY(OctSun1)=1,IF(AND(YEAR(OctSun1+4)=CalendarYear,MONTH(OctSun1+4)=10),OctSun1+4,\"\"),IF(AND(YEAR(OctSun1+11)=CalendarYear,MONTH(OctSun1+11)=10),OctSun1+11,\"\"))","v":"2020-10-07"},{"$f":"IF(DAY(OctSun1)=1,IF(AND(YEAR(OctSun1+5)=CalendarYear,MONTH(OctSun1+5)=10),OctSun1+5,\"\"),IF(AND(YEAR(OctSun1+12)=CalendarYear,MONTH(OctSun1+12)=10),OctSun1+12,\"\"))","v":"2020-10-08"},{"$f":"IF(DAY(OctSun1)=1,IF(AND(YEAR(OctSun1+6)=CalendarYear,MONTH(OctSun1+6)=10),OctSun1+6,\"\"),IF(AND(YEAR(OctSun1+13)=CalendarYear,MONTH(OctSun1+13)=10),OctSun1+13,\"\"))","v":"2020-10-09"},{"$f":"IF(DAY(OctSun1)=1,IF(AND(YEAR(OctSun1+7)=CalendarYear,MONTH(OctSun1+7)=10),OctSun1+7,\"\"),IF(AND(YEAR(OctSun1+14)=CalendarYear,MONTH(OctSun1+14)=10),OctSun1+14,\"\"))","v":"2020-10-10"}]
[null,null,{"$f":"IF(DAY(SepSun1)=1,IF(AND(YEAR(SepSun1+8)=CalendarYear,MONTH(SepSun1+8)=9),SepSun1+8,\"\"),IF(AND(YEAR(SepSun1+15)=CalendarYear,MONTH(SepSun1+15)=9),SepSun1+15,\"\"))","v":"2020-09-13"},{"$f":"IF(DAY(SepSun1)=1,IF(AND(YEAR(SepSun1+9)=CalendarYear,MONTH(SepSun1+9)=9),SepSun1+9,\"\"),IF(AND(YEAR(SepSun1+16)=CalendarYear,MONTH(SepSun1+16)=9),SepSun1+16,\"\"))","v":"2020-09-14"},{"$f":"IF(DAY(SepSun1)=1,IF(AND(YEAR(SepSun1+10)=CalendarYear,MONTH(SepSun1+10)=9),SepSun1+10,\"\"),IF(AND(YEAR(SepSun1+17)=CalendarYear,MONTH(SepSun1+17)=9),SepSun1+17,\"\"))","v":"2020-09-15"},{"$f":"IF(DAY(SepSun1)=1,IF(AND(YEAR(SepSun1+11)=CalendarYear,MONTH(SepSun1+11)=9),SepSun1+11,\"\"),IF(AND(YEAR(SepSun1+18)=CalendarYear,MONTH(SepSun1+18)=9),SepSun1+18,\"\"))","v":"2020-09-16"},{"$f":"IF(DAY(SepSun1)=1,IF(AND(YEAR(SepSun1+12)=CalendarYear,MONTH(SepSun1+12)=9),SepSun1+12,\"\"),IF(AND(YEAR(SepSun1+19)=CalendarYear,MONTH(SepSun1+19)=9),SepSun1+19,\"\"))","v":"2020-09-17"},{"$f":"IF(DAY(SepSun1)=1,IF(AND(YEAR(SepSun1+13)=CalendarYear,MONTH(SepSun1+13)=9),SepSun1+13,\"\"),IF(AND(YEAR(SepSun1+20)=CalendarYear,MONTH(SepSun1+20)=9),SepSun1+20,\"\"))","v":"2020-09-18"},{"$f":"IF(DAY(SepSun1)=1,IF(AND(YEAR(SepSun1+14)=CalendarYear,MONTH(SepSun1+14)=9),SepSun1+14,\"\"),IF(AND(YEAR(SepSun1+21)=CalendarYear,MONTH(SepSun1+21)=9),SepSun1+21,\"\"))","v":"2020-09-19"},null,{"$f":"IF(DAY(OctSun1)=1,IF(AND(YEAR(OctSun1+8)=CalendarYear,MONTH(OctSun1+8)=10),OctSun1+8,\"\"),IF(AND(YEAR(OctSun1+15)=CalendarYear,MONTH(OctSun1+15)=10),OctSun1+15,\"\"))","v":"2020-10-11"},{"$f":"IF(DAY(OctSun1)=1,IF(AND(YEAR(OctSun1+9)=CalendarYear,MONTH(OctSun1+9)=10),OctSun1+9,\"\"),IF(AND(YEAR(OctSun1+16)=CalendarYear,MONTH(OctSun1+16)=10),OctSun1+16,\"\"))","v":"2020-10-12"},{"$f":"IF(DAY(OctSun1)=1,IF(AND(YEAR(OctSun1+10)=CalendarYear,MONTH(OctSun1+10)=10),OctSun1+10,\"\"),IF(AND(YEAR(OctSun1+17)=CalendarYear,MONTH(OctSun1+17)=10),OctSun1+17,\"\"))","v":"2020-10-13"},{"$f":"IF(DAY(OctSun1)=1,IF(AND(YEAR(OctSun1+11)=CalendarYear,MONTH(OctSun1+11)=10),OctSun1+11,\"\"),IF(AND(YEAR(OctSun1+18)=CalendarYear,MONTH(OctSun1+18)=10),OctSun1+18,\"\"))","v":"2020-10-14"},{"$f":"IF(DAY(OctSun1)=1,IF(AND(YEAR(OctSun1+12)=CalendarYear,MONTH(OctSun1+12)=10),OctSun1+12,\"\"),IF(AND(YEAR(OctSun1+19)=CalendarYear,MONTH(OctSun1+19)=10),OctSun1+19,\"\"))","v":"2020-10-15"},{"$f":"IF(DAY(OctSun1)=1,IF(AND(YEAR(OctSun1+13)=CalendarYear,MONTH(OctSun1+13)=10),OctSun1+13,\"\"),IF(AND(YEAR(OctSun1+20)=CalendarYear,MONTH(OctSun1+20)=10),OctSun1+20,\"\"))","v":"2020-10-16"},{"$f":"IF(DAY(OctSun1)=1,IF(AND(YEAR(OctSun1+14)=CalendarYear,MONTH(OctSun1+14)=10),OctSun1+14,\"\"),IF(AND(YEAR(OctSun1+21)=CalendarYear,MONTH(OctSun1+21)=10),OctSun1+21,\"\"))","v":"2020-10-17"}]
["הזן את הכתובת בתא U44",null,{"$f":"IF(DAY(SepSun1)=1,IF(AND(YEAR(SepSun1+15)=CalendarYear,MONTH(SepSun1+15)=9),SepSun1+15,\"\"),IF(AND(YEAR(SepSun1+22)=CalendarYear,MONTH(SepSun1+22)=9),SepSun1+22,\"\"))","v":"2020-09-20"},{"$f":"IF(DAY(SepSun1)=1,IF(AND(YEAR(SepSun1+16)=CalendarYear,MONTH(SepSun1+16)=9),SepSun1+16,\"\"),IF(AND(YEAR(SepSun1+23)=CalendarYear,MONTH(SepSun1+23)=9),SepSun1+23,\"\"))","v":"2020-09-21"},{"$f":"IF(DAY(SepSun1)=1,IF(AND(YEAR(SepSun1+17)=CalendarYear,MONTH(SepSun1+17)=9),SepSun1+17,\"\"),IF(AND(YEAR(SepSun1+24)=CalendarYear,MONTH(SepSun1+24)=9),SepSun1+24,\"\"))","v":"2020-09-22"},{"$f":"IF(DAY(SepSun1)=1,IF(AND(YEAR(SepSun1+18)=CalendarYear,MONTH(SepSun1+18)=9),SepSun1+18,\"\"),IF(AND(YEAR(SepSun1+25)=CalendarYear,MONTH(SepSun1+25)=9),SepSun1+25,\"\"))","v":"2020-09-23"},{"$f":"IF(DAY(SepSun1)=1,IF(AND(YEAR(SepSun1+19)=CalendarYear,MONTH(SepSun1+19)=9),SepSun1+19,\"\"),IF(AND(YEAR(SepSun1+26)=CalendarYear,MONTH(SepSun1+26)=9),SepSun1+26,\"\"))","v":"2020-09-24"},{"$f":"IF(DAY(SepSun1)=1,IF(AND(YEAR(SepSun1+20)=CalendarYear,MONTH(SepSun1+20)=9),SepSun1+20,\"\"),IF(AND(YEAR(SepSun1+27)=CalendarYear,MONTH(SepSun1+27)=9),SepSun1+27,\"\"))","v":"2020-09-25"},{"$f":"IF(DAY(SepSun1)=1,IF(AND(YEAR(SepSun1+21)=CalendarYear,MONTH(SepSun1+21)=9),SepSun1+21,\"\"),IF(AND(YEAR(SepSun1+28)=CalendarYear,MONTH(SepSun1+28)=9),SepSun1+28,\"\"))","v":"2020-09-26"},null,{"$f":"IF(DAY(OctSun1)=1,IF(AND(YEAR(OctSun1+15)=CalendarYear,MONTH(OctSun1+15)=10),OctSun1+15,\"\"),IF(AND(YEAR(OctSun1+22)=CalendarYear,MONTH(OctSun1+22)=10),OctSun1+22,\"\"))","v":"2020-10-18"},{"$f":"IF(DAY(OctSun1)=1,IF(AND(YEAR(OctSun1+16)=CalendarYear,MONTH(OctSun1+16)=10),OctSun1+16,\"\"),IF(AND(YEAR(OctSun1+23)=CalendarYear,MONTH(OctSun1+23)=10),OctSun1+23,\"\"))","v":"2020-10-19"},{"$f":"IF(DAY(OctSun1)=1,IF(AND(YEAR(OctSun1+17)=CalendarYear,MONTH(OctSun1+17)=10),OctSun1+17,\"\"),IF(AND(YEAR(OctSun1+24)=CalendarYear,MONTH(OctSun1+24)=10),OctSun1+24,\"\"))","v":"2020-10-20"},{"$f":"IF(DAY(OctSun1)=1,IF(AND(YEAR(OctSun1+18)=CalendarYear,MONTH(OctSun1+18)=10),OctSun1+18,\"\"),IF(AND(YEAR(OctSun1+25)=CalendarYear,MONTH(OctSun1+25)=10),OctSun1+25,\"\"))","v":"2020-10-21"},{"$f":"IF(DAY(OctSun1)=1,IF(AND(YEAR(OctSun1+19)=CalendarYear,MONTH(OctSun1+19)=10),OctSun1+19,\"\"),IF(AND(YEAR(OctSun1+26)=CalendarYear,MONTH(OctSun1+26)=10),OctSun1+26,\"\"))","v":"2020-10-22"},{"$f":"IF(DAY(OctSun1)=1,IF(AND(YEAR(OctSun1+20)=CalendarYear,MONTH(OctSun1+20)=10),OctSun1+20,\"\"),IF(AND(YEAR(OctSun1+27)=CalendarYear,MONTH(OctSun1+27)=10),OctSun1+27,\"\"))","v":"2020-10-23"},{"$f":"IF(DAY(OctSun1)=1,IF(AND(YEAR(OctSun1+21)=CalendarYear,MONTH(OctSun1+21)=10),OctSun1+21,\"\"),IF(AND(YEAR(OctSun1+28)=CalendarYear,MONTH(OctSun1+28)=10),OctSun1+28,\"\"))","v":"2020-10-24"},{"$nulls":3},"כתובת"]
["הזן את העיר והמיקוד בתא U45. ההוראה הבאה מופיעה בתא A47",null,{"$f":"IF(DAY(SepSun1)=1,IF(AND(YEAR(SepSun1+22)=CalendarYear,MONTH(SepSun1+22)=9),SepSun1+22,\"\"),IF(AND(YEAR(SepSun1+29)=CalendarYear,MONTH(SepSun1+29)=9),SepSun1+29,\"\"))","v":"2020-09-27"},{"$f":"IF(DAY(SepSun1)=1,IF(AND(YEAR(SepSun1+23)=CalendarYear,MONTH(SepSun1+23)=9),SepSun1+23,\"\"),IF(AND(YEAR(SepSun1+30)=CalendarYear,MONTH(SepSun1+30)=9),SepSun1+30,\"\"))","v":"2020-09-28"},{"$f":"IF(DAY(SepSun1)=1,IF(AND(YEAR(SepSun1+24)=CalendarYear,MONTH(SepSun1+24)=9),SepSun1+24,\"\"),IF(AND(YEAR(SepSun1+31)=CalendarYear,MONTH(SepSun1+31)=9),SepSun1+31,\"\"))","v":"2020-09-29"},{"$f":"IF(DAY(SepSun1)=1,IF(AND(YEAR(SepSun1+25)=CalendarYear,MONTH(SepSun1+25)=9),SepSun1+25,\"\"),IF(AND(YEAR(SepSun1+32)=CalendarYear,MONTH(SepSun1+32)=9),SepSun1+32,\"\"))","v":"2020-09-30"},{"$f":"IF(DAY(SepSun1)=1,IF(AND(YEAR(SepSun1+26)=CalendarYear,MONTH(SepSun1+26)=9),SepSun1+26,\"\"),IF(AND(YEAR(SepSun1+33)=CalendarYear,MONTH(SepSun1+33)=9),SepSun1+33,\"\"))","v":""},{"$f":"IF(DAY(SepSun1)=1,IF(AND(YEAR(SepSun1+27)=CalendarYear,MONTH(SepSun1+27)=9),SepSun1+27,\"\"),IF(AND(YEAR(SepSun1+34)=CalendarYear,MONTH(SepSun1+34)=9),SepSun1+34,\"\"))","v":""},{"$f":"IF(DAY(SepSun1)=1,IF(AND(YEAR(SepSun1+28)=CalendarYear,MONTH(SepSun1+28)=9),SepSun1+28,\"\"),IF(AND(YEAR(SepSun1+35)=CalendarYear,MONTH(SepSun1+35)=9),SepSun1+35,\"\"))","v":""},null,{"$f":"IF(DAY(OctSun1)=1,IF(AND(YEAR(OctSun1+22)=CalendarYear,MONTH(OctSun1+22)=10),OctSun1+22,\"\"),IF(AND(YEAR(OctSun1+29)=CalendarYear,MONTH(OctSun1+29)=10),OctSun1+29,\"\"))","v":"2020-10-25"},{"$f":"IF(DAY(OctSun1)=1,IF(AND(YEAR(OctSun1+23)=CalendarYear,MONTH(OctSun1+23)=10),OctSun1+23,\"\"),IF(AND(YEAR(OctSun1+30)=CalendarYear,MONTH(OctSun1+30)=10),OctSun1+30,\"\"))","v":"2020-10-26"},{"$f":"IF(DAY(OctSun1)=1,IF(AND(YEAR(OctSun1+24)=CalendarYear,MONTH(OctSun1+24)=10),OctSun1+24,\"\"),IF(AND(YEAR(OctSun1+31)=CalendarYear,MONTH(OctSun1+31)=10),OctSun1+31,\"\"))","v":"2020-10-27"},{"$f":"IF(DAY(OctSun1)=1,IF(AND(YEAR(OctSun1+25)=CalendarYear,MONTH(OctSun1+25)=10),OctSun1+25,\"\"),IF(AND(YEAR(OctSun1+32)=CalendarYear,MONTH(OctSun1+32)=10),OctSun1+32,\"\"))","v":"2020-10-28"},{"$f":"IF(DAY(OctSun1)=1,IF(AND(YEAR(OctSun1+26)=CalendarYear,MONTH(OctSun1+26)=10),OctSun1+26,\"\"),IF(AND(YEAR(OctSun1+33)=CalendarYear,MONTH(OctSun1+33)=10),OctSun1+33,\"\"))","v":"2020-10-29"},{"$f":"IF(DAY(OctSun1)=1,IF(AND(YEAR(OctSun1+27)=CalendarYear,MONTH(OctSun1+27)=10),OctSun1+27,\"\"),IF(AND(YEAR(OctSun1+34)=CalendarYear,MONTH(OctSun1+34)=10),OctSun1+34,\"\"))","v":"2020-10-30"},{"$f":"IF(DAY(OctSun1)=1,IF(AND(YEAR(OctSun1+28)=CalendarYear,MONTH(OctSun1+28)=10),OctSun1+28,\"\"),IF(AND(YEAR(OctSun1+35)=CalendarYear,MONTH(OctSun1+35)=10),OctSun1+35,\"\"))","v":"2020-10-31"},{"$nulls":3},"עיר מיקוד"]
[null,null,{"$f":"IF(DAY(SepSun1)=1,IF(AND(YEAR(SepSun1+29)=CalendarYear,MONTH(SepSun1+29)=9),SepSun1+29,\"\"),IF(AND(YEAR(SepSun1+36)=CalendarYear,MONTH(SepSun1+36)=9),SepSun1+36,\"\"))","v":""},{"$f":"IF(DAY(SepSun1)=1,IF(AND(YEAR(SepSun1+30)=CalendarYear,MONTH(SepSun1+30)=9),SepSun1+30,\"\"),IF(AND(YEAR(SepSun1+37)=CalendarYear,MONTH(SepSun1+37)=9),SepSun1+37,\"\"))","v":""},{"$f":"IF(DAY(SepSun1)=1,IF(AND(YEAR(SepSun1+31)=CalendarYear,MONTH(SepSun1+31)=9),SepSun1+31,\"\"),IF(AND(YEAR(SepSun1+38)=CalendarYear,MONTH(SepSun1+38)=9),SepSun1+38,\"\"))","v":""},{"$f":"IF(DAY(SepSun1)=1,IF(AND(YEAR(SepSun1+32)=CalendarYear,MONTH(SepSun1+32)=9),SepSun1+32,\"\"),IF(AND(YEAR(SepSun1+39)=CalendarYear,MONTH(SepSun1+39)=9),SepSun1+39,\"\"))","v":""},{"$f":"IF(DAY(SepSun1)=1,IF(AND(YEAR(SepSun1+33)=CalendarYear,MONTH(SepSun1+33)=9),SepSun1+33,\"\"),IF(AND(YEAR(SepSun1+40)=CalendarYear,MONTH(SepSun1+40)=9),SepSun1+40,\"\"))","v":""},{"$f":"IF(DAY(SepSun1)=1,IF(AND(YEAR(SepSun1+34)=CalendarYear,MONTH(SepSun1+34)=9),SepSun1+34,\"\"),IF(AND(YEAR(SepSun1+41)=CalendarYear,MONTH(SepSun1+41)=9),SepSun1+41,\"\"))","v":""},{"$f":"IF(DAY(SepSun1)=1,IF(AND(YEAR(SepSun1+35)=CalendarYear,MONTH(SepSun1+35)=9),SepSun1+35,\"\"),IF(AND(YEAR(SepSun1+42)=CalendarYear,MONTH(SepSun1+42)=9),SepSun1+42,\"\"))","v":""},null,{"$f":"IF(DAY(OctSun1)=1,IF(AND(YEAR(OctSun1+29)=CalendarYear,MONTH(OctSun1+29)=10),OctSun1+29,\"\"),IF(AND(YEAR(OctSun1+36)=CalendarYear,MONTH(OctSun1+36)=10),OctSun1+36,\"\"))","v":""},{"$f":"IF(DAY(OctSun1)=1,IF(AND(YEAR(OctSun1+30)=CalendarYear,MONTH(OctSun1+30)=10),OctSun1+30,\"\"),IF(AND(YEAR(OctSun1+37)=CalendarYear,MONTH(OctSun1+37)=10),OctSun1+37,\"\"))","v":""},{"$f":"IF(DAY(OctSun1)=1,IF(AND(YEAR(OctSun1+31)=CalendarYear,MONTH(OctSun1+31)=10),OctSun1+31,\"\"),IF(AND(YEAR(OctSun1+38)=CalendarYear,MONTH(OctSun1+38)=10),OctSun1+38,\"\"))","v":""},{"$f":"IF(DAY(OctSun1)=1,IF(AND(YEAR(OctSun1+32)=CalendarYear,MONTH(OctSun1+32)=10),OctSun1+32,\"\"),IF(AND(YEAR(OctSun1+39)=CalendarYear,MONTH(OctSun1+39)=10),OctSun1+39,\"\"))","v":""},{"$f":"IF(DAY(OctSun1)=1,IF(AND(YEAR(OctSun1+33)=CalendarYear,MONTH(OctSun1+33)=10),OctSun1+33,\"\"),IF(AND(YEAR(OctSun1+40)=CalendarYear,MONTH(OctSun1+40)=10),OctSun1+40,\"\"))","v":""},{"$f":"IF(DAY(OctSun1)=1,IF(AND(YEAR(OctSun1+34)=CalendarYear,MONTH(OctSun1+34)=10),OctSun1+34,\"\"),IF(AND(YEAR(OctSun1+41)=CalendarYear,MONTH(OctSun1+41)=10),OctSun1+41,\"\"))","v":""},{"$f":"IF(DAY(OctSun1)=1,IF(AND(YEAR(OctSun1+35)=CalendarYear,MONTH(OctSun1+35)=10),OctSun1+35,\"\"),IF(AND(YEAR(OctSun1+42)=CalendarYear,MONTH(OctSun1+42)=10),OctSun1+42,\"\"))","v":""}]
["הזן את מספר הטלפון של החברה בתא U47",{"$nulls":19},"טלפון"]
["התווית 'נובמבר' מופיעה בתא C48, והתווית 'דצמבר' מופיעה בתא K48. הזן את כתובת הדואר האלקטרוני בתא U48",null,"נובמבר",{"$nulls":7},"דצמבר",{"$nulls":9},"דואר אלקטרוני"]
["טבלת לוח השנה של נובמבר מופיעה בתאים C49 עד I55. טבלת לוח השנה של דצמבר מופיעה בתאים K49 עד Q55. ההוראה הבאה מופיעה בתא A51",null,"א'","ב'","ג'","ד'","ה'","ו'","ש'",null,"א'","ב'","ג'","ד'","ה'","ו'","ש'",{"$nulls":3},"אתר אינטרנט"]
[null,null,{"$f":"IF(DAY(NovSun1)=1,\"\",IF(AND(YEAR(NovSun1+1)=CalendarYear,MONTH(NovSun1+1)=11),NovSun1+1,\"\"))","v":"2020-11-01"},{"$f":"IF(DAY(NovSun1)=1,\"\",IF(AND(YEAR(NovSun1+2)=CalendarYear,MONTH(NovSun1+2)=11),NovSun1+2,\"\"))","v":"2020-11-02"},{"$f":"IF(DAY(NovSun1)=1,\"\",IF(AND(YEAR(NovSun1+3)=CalendarYear,MONTH(NovSun1+3)=11),NovSun1+3,\"\"))","v":"2020-11-03"},{"$f":"IF(DAY(NovSun1)=1,\"\",IF(AND(YEAR(NovSun1+4)=CalendarYear,MONTH(NovSun1+4)=11),NovSun1+4,\"\"))","v":"2020-11-04"},{"$f":"IF(DAY(NovSun1)=1,\"\",IF(AND(YEAR(NovSun1+5)=CalendarYear,MONTH(NovSun1+5)=11),NovSun1+5,\"\"))","v":"2020-11-05"},{"$f":"IF(DAY(NovSun1)=1,\"\",IF(AND(YEAR(NovSun1+6)=CalendarYear,MONTH(NovSun1+6)=11),NovSun1+6,\"\"))","v":"2020-11-06"},{"$f":"IF(DAY(NovSun1)=1,IF(AND(YEAR(NovSun1)=CalendarYear,MONTH(NovSun1)=11),NovSun1,\"\"),IF(AND(YEAR(NovSun1+7)=CalendarYear,MONTH(NovSun1+7)=11),NovSun1+7,\"\"))","v":"2020-11-07"},null,{"$f":"IF(DAY(DecSun1)=1,\"\",IF(AND(YEAR(DecSun1+1)=CalendarYear,MONTH(DecSun1+1)=12),DecSun1+1,\"\"))","v":""},{"$f":"IF(DAY(DecSun1)=1,\"\",IF(AND(YEAR(DecSun1+2)=CalendarYear,MONTH(DecSun1+2)=12),DecSun1+2,\"\"))","v":""},{"$f":"IF(DAY(DecSun1)=1,\"\",IF(AND(YEAR(DecSun1+3)=CalendarYear,MONTH(DecSun1+3)=12),DecSun1+3,\"\"))","v":"2020-12-01"},{"$f":"IF(DAY(DecSun1)=1,\"\",IF(AND(YEAR(DecSun1+4)=CalendarYear,MONTH(DecSun1+4)=12),DecSun1+4,\"\"))","v":"2020-12-02"},{"$f":"IF(DAY(DecSun1)=1,\"\",IF(AND(YEAR(DecSun1+5)=CalendarYear,MONTH(DecSun1+5)=12),DecSun1+5,\"\"))","v":"2020-12-03"},{"$f":"IF(DAY(DecSun1)=1,\"\",IF(AND(YEAR(DecSun1+6)=CalendarYear,MONTH(DecSun1+6)=12),DecSun1+6,\"\"))","v":"2020-12-04"},{"$f":"IF(DAY(DecSun1)=1,IF(AND(YEAR(DecSun1)=CalendarYear,MONTH(DecSun1)=12),DecSun1,\"\"),IF(AND(YEAR(DecSun1+7)=CalendarYear,MONTH(DecSun1+7)=12),DecSun1+7,\"\"))","v":"2020-12-05"}]
["הוסף את סמל החברה בתא U51",null,{"$f":"IF(DAY(NovSun1)=1,IF(AND(YEAR(NovSun1+1)=CalendarYear,MONTH(NovSun1+1)=11),NovSun1+1,\"\"),IF(AND(YEAR(NovSun1+8)=CalendarYear,MONTH(NovSun1+8)=11),NovSun1+8,\"\"))","v":"2020-11-08"},{"$f":"IF(DAY(NovSun1)=1,IF(AND(YEAR(NovSun1+2)=CalendarYear,MONTH(NovSun1+2)=11),NovSun1+2,\"\"),IF(AND(YEAR(NovSun1+9)=CalendarYear,MONTH(NovSun1+9)=11),NovSun1+9,\"\"))","v":"2020-11-09"},{"$f":"IF(DAY(NovSun1)=1,IF(AND(YEAR(NovSun1+3)=CalendarYear,MONTH(NovSun1+3)=11),NovSun1+3,\"\"),IF(AND(YEAR(NovSun1+10)=CalendarYear,MONTH(NovSun1+10)=11),NovSun1+10,\"\"))","v":"2020-11-10"},{"$f":"IF(DAY(NovSun1)=1,IF(AND(YEAR(NovSun1+4)=CalendarYear,MONTH(NovSun1+4)=11),NovSun1+4,\"\"),IF(AND(YEAR(NovSun1+11)=CalendarYear,MONTH(NovSun1+11)=11),NovSun1+11,\"\"))","v":"2020-11-11"},{"$f":"IF(DAY(NovSun1)=1,IF(AND(YEAR(NovSun1+5)=CalendarYear,MONTH(NovSun1+5)=11),NovSun1+5,\"\"),IF(AND(YEAR(NovSun1+12)=CalendarYear,MONTH(NovSun1+12)=11),NovSun1+12,\"\"))","v":"2020-11-12"},{"$f":"IF(DAY(NovSun1)=1,IF(AND(YEAR(NovSun1+6)=CalendarYear,MONTH(NovSun1+6)=11),NovSun1+6,\"\"),IF(AND(YEAR(NovSun1+13)=CalendarYear,MONTH(NovSun1+13)=11),NovSun1+13,\"\"))","v":"2020-11-13"},{"$f":"IF(DAY(NovSun1)=1,IF(AND(YEAR(NovSun1+7)=CalendarYear,MONTH(NovSun1+7)=11),NovSun1+7,\"\"),IF(AND(YEAR(NovSun1+14)=CalendarYear,MONTH(NovSun1+14)=11),NovSun1+14,\"\"))","v":"2020-11-14"},null,{"$f":"IF(DAY(DecSun1)=1,IF(AND(YEAR(DecSun1+1)=CalendarYear,MONTH(DecSun1+1)=12),DecSun1+1,\"\"),IF(AND(YEAR(DecSun1+8)=CalendarYear,MONTH(DecSun1+8)=12),DecSun1+8,\"\"))","v":"2020-12-06"},{"$f":"IF(DAY(DecSun1)=1,IF(AND(YEAR(DecSun1+2)=CalendarYear,MONTH(DecSun1+2)=12),DecSun1+2,\"\"),IF(AND(YEAR(DecSun1+9)=CalendarYear,MONTH(DecSun1+9)=12),DecSun1+9,\"\"))","v":"2020-12-07"},{"$f":"IF(DAY(DecSun1)=1,IF(AND(YEAR(DecSun1+3)=CalendarYear,MONTH(DecSun1+3)=12),DecSun1+3,\"\"),IF(AND(YEAR(DecSun1+10)=CalendarYear,MONTH(DecSun1+10)=12),DecSun1+10,\"\"))","v":"2020-12-08"},{"$f":"IF(DAY(DecSun1)=1,IF(AND(YEAR(DecSun1+4)=CalendarYear,MONTH(DecSun1+4)=12),DecSun1+4,\"\"),IF(AND(YEAR(DecSun1+11)=CalendarYear,MONTH(DecSun1+11)=12),DecSun1+11,\"\"))","v":"2020-12-09"},{"$f":"IF(DAY(DecSun1)=1,IF(AND(YEAR(DecSun1+5)=CalendarYear,MONTH(DecSun1+5)=12),DecSun1+5,\"\"),IF(AND(YEAR(DecSun1+12)=CalendarYear,MONTH(DecSun1+12)=12),DecSun1+12,\"\"))","v":"2020-12-10"},{"$f":"IF(DAY(DecSun1)=1,IF(AND(YEAR(DecSun1+6)=CalendarYear,MONTH(DecSun1+6)=12),DecSun1+6,\"\"),IF(AND(YEAR(DecSun1+13)=CalendarYear,MONTH(DecSun1+13)=12),DecSun1+13,\"\"))","v":"2020-12-11"},{"$f":"IF(DAY(DecSun1)=1,IF(AND(YEAR(DecSun1+7)=CalendarYear,MONTH(DecSun1+7)=12),DecSun1+7,\"\"),IF(AND(YEAR(DecSun1+14)=CalendarYear,MONTH(DecSun1+14)=12),DecSun1+14,\"\"))","v":"2020-12-12"},{"$nulls":3},"מציין המיקום של הסמל מופיע בתא זה."]
[null,null,{"$f":"IF(DAY(NovSun1)=1,IF(AND(YEAR(NovSun1+8)=CalendarYear,MONTH(NovSun1+8)=11),NovSun1+8,\"\"),IF(AND(YEAR(NovSun1+15)=CalendarYear,MONTH(NovSun1+15)=11),NovSun1+15,\"\"))","v":"2020-11-15"},{"$f":"IF(DAY(NovSun1)=1,IF(AND(YEAR(NovSun1+9)=CalendarYear,MONTH(NovSun1+9)=11),NovSun1+9,\"\"),IF(AND(YEAR(NovSun1+16)=CalendarYear,MONTH(NovSun1+16)=11),NovSun1+16,\"\"))","v":"2020-11-16"},{"$f":"IF(DAY(NovSun1)=1,IF(AND(YEAR(NovSun1+10)=CalendarYear,MONTH(NovSun1+10)=11),NovSun1+10,\"\"),IF(AND(YEAR(NovSun1+17)=CalendarYear,MONTH(NovSun1+17)=11),NovSun1+17,\"\"))","v":"2020-11-17"},{"$f":"IF(DAY(NovSun1)=1,IF(AND(YEAR(NovSun1+11)=CalendarYear,MONTH(NovSun1+11)=11),NovSun1+11,\"\"),IF(AND(YEAR(NovSun1+18)=CalendarYear,MONTH(NovSun1+18)=11),NovSun1+18,\"\"))","v":"2020-11-18"},{"$f":"IF(DAY(NovSun1)=1,IF(AND(YEAR(NovSun1+12)=CalendarYear,MONTH(NovSun1+12)=11),NovSun1+12,\"\"),IF(AND(YEAR(NovSun1+19)=CalendarYear,MONTH(NovSun1+19)=11),NovSun1+19,\"\"))","v":"2020-11-19"},{"$f":"IF(DAY(NovSun1)=1,IF(AND(YEAR(NovSun1+13)=CalendarYear,MONTH(NovSun1+13)=11),NovSun1+13,\"\"),IF(AND(YEAR(NovSun1+20)=CalendarYear,MONTH(NovSun1+20)=11),NovSun1+20,\"\"))","v":"2020-11-20"},{"$f":"IF(DAY(NovSun1)=1,IF(AND(YEAR(NovSun1+14)=CalendarYear,MONTH(NovSun1+14)=11),NovSun1+14,\"\"),IF(AND(YEAR(NovSun1+21)=CalendarYear,MONTH(NovSun1+21)=11),NovSun1+21,\"\"))","v":"2020-11-21"},null,{"$f":"IF(DAY(DecSun1)=1,IF(AND(YEAR(DecSun1+8)=CalendarYear,MONTH(DecSun1+8)=12),DecSun1+8,\"\"),IF(AND(YEAR(DecSun1+15)=CalendarYear,MONTH(DecSun1+15)=12),DecSun1+15,\"\"))","v":"2020-12-13"},{"$f":"IF(DAY(DecSun1)=1,IF(AND(YEAR(DecSun1+9)=CalendarYear,MONTH(DecSun1+9)=12),DecSun1+9,\"\"),IF(AND(YEAR(DecSun1+16)=CalendarYear,MONTH(DecSun1+16)=12),DecSun1+16,\"\"))","v":"2020-12-14"},{"$f":"IF(DAY(DecSun1)=1,IF(AND(YEAR(DecSun1+10)=CalendarYear,MONTH(DecSun1+10)=12),DecSun1+10,\"\"),IF(AND(YEAR(DecSun1+17)=CalendarYear,MONTH(DecSun1+17)=12),DecSun1+17,\"\"))","v":"2020-12-15"},{"$f":"IF(DAY(DecSun1)=1,IF(AND(YEAR(DecSun1+11)=CalendarYear,MONTH(DecSun1+11)=12),DecSun1+11,\"\"),IF(AND(YEAR(DecSun1+18)=CalendarYear,MONTH(DecSun1+18)=12),DecSun1+18,\"\"))","v":"2020-12-16"},{"$f":"IF(DAY(DecSun1)=1,IF(AND(YEAR(DecSun1+12)=CalendarYear,MONTH(DecSun1+12)=12),DecSun1+12,\"\"),IF(AND(YEAR(DecSun1+19)=CalendarYear,MONTH(DecSun1+19)=12),DecSun1+19,\"\"))","v":"2020-12-17"},{"$f":"IF(DAY(DecSun1)=1,IF(AND(YEAR(DecSun1+13)=CalendarYear,MONTH(DecSun1+13)=12),DecSun1+13,\"\"),IF(AND(YEAR(DecSun1+20)=CalendarYear,MONTH(DecSun1+20)=12),DecSun1+20,\"\"))","v":"2020-12-18"},{"$f":"IF(DAY(DecSun1)=1,IF(AND(YEAR(DecSun1+14)=CalendarYear,MONTH(DecSun1+14)=12),DecSun1+14,\"\"),IF(AND(YEAR(DecSun1+21)=CalendarYear,MONTH(DecSun1+21)=12),DecSun1+21,\"\"))","v":"2020-12-19"}]
[null,null,{"$f":"IF(DAY(NovSun1)=1,IF(AND(YEAR(NovSun1+15)=CalendarYear,MONTH(NovSun1+15)=11),NovSun1+15,\"\"),IF(AND(YEAR(NovSun1+22)=CalendarYear,MONTH(NovSun1+22)=11),NovSun1+22,\"\"))","v":"2020-11-22"},{"$f":"IF(DAY(NovSun1)=1,IF(AND(YEAR(NovSun1+16)=CalendarYear,MONTH(NovSun1+16)=11),NovSun1+16,\"\"),IF(AND(YEAR(NovSun1+23)=CalendarYear,MONTH(NovSun1+23)=11),NovSun1+23,\"\"))","v":"2020-11-23"},{"$f":"IF(DAY(NovSun1)=1,IF(AND(YEAR(NovSun1+17)=CalendarYear,MONTH(NovSun1+17)=11),NovSun1+17,\"\"),IF(AND(YEAR(NovSun1+24)=CalendarYear,MONTH(NovSun1+24)=11),NovSun1+24,\"\"))","v":"2020-11-24"},{"$f":"IF(DAY(NovSun1)=1,IF(AND(YEAR(NovSun1+18)=CalendarYear,MONTH(NovSun1+18)=11),NovSun1+18,\"\"),IF(AND(YEAR(NovSun1+25)=CalendarYear,MONTH(NovSun1+25)=11),NovSun1+25,\"\"))","v":"2020-11-25"},{"$f":"IF(DAY(NovSun1)=1,IF(AND(YEAR(NovSun1+19)=CalendarYear,MONTH(NovSun1+19)=11),NovSun1+19,\"\"),IF(AND(YEAR(NovSun1+26)=CalendarYear,MONTH(NovSun1+26)=11),NovSun1+26,\"\"))","v":"2020-11-26"},{"$f":"IF(DAY(NovSun1)=1,IF(AND(YEAR(NovSun1+20)=CalendarYear,MONTH(NovSun1+20)=11),NovSun1+20,\"\"),IF(AND(YEAR(NovSun1+27)=CalendarYear,MONTH(NovSun1+27)=11),NovSun1+27,\"\"))","v":"2020-11-27"},{"$f":"IF(DAY(NovSun1)=1,IF(AND(YEAR(NovSun1+21)=CalendarYear,MONTH(NovSun1+21)=11),NovSun1+21,\"\"),IF(AND(YEAR(NovSun1+28)=CalendarYear,MONTH(NovSun1+28)=11),NovSun1+28,\"\"))","v":"2020-11-28"},null,{"$f":"IF(DAY(DecSun1)=1,IF(AND(YEAR(DecSun1+15)=CalendarYear,MONTH(DecSun1+15)=12),DecSun1+15,\"\"),IF(AND(YEAR(DecSun1+22)=CalendarYear,MONTH(DecSun1+22)=12),DecSun1+22,\"\"))","v":"2020-12-20"},{"$f":"IF(DAY(DecSun1)=1,IF(AND(YEAR(DecSun1+16)=CalendarYear,MONTH(DecSun1+16)=12),DecSun1+16,\"\"),IF(AND(YEAR(DecSun1+23)=CalendarYear,MONTH(DecSun1+23)=12),DecSun1+23,\"\"))","v":"2020-12-21"},{"$f":"IF(DAY(DecSun1)=1,IF(AND(YEAR(DecSun1+17)=CalendarYear,MONTH(DecSun1+17)=12),DecSun1+17,\"\"),IF(AND(YEAR(DecSun1+24)=CalendarYear,MONTH(DecSun1+24)=12),DecSun1+24,\"\"))","v":"2020-12-22"},{"$f":"IF(DAY(DecSun1)=1,IF(AND(YEAR(DecSun1+18)=CalendarYear,MONTH(DecSun1+18)=12),DecSun1+18,\"\"),IF(AND(YEAR(DecSun1+25)=CalendarYear,MONTH(DecSun1+25)=12),DecSun1+25,\"\"))","v":"2020-12-23"},{"$f":"IF(DAY(DecSun1)=1,IF(AND(YEAR(DecSun1+19)=CalendarYear,MONTH(DecSun1+19)=12),DecSun1+19,\"\"),IF(AND(YEAR(DecSun1+26)=CalendarYear,MONTH(DecSun1+26)=12),DecSun1+26,\"\"))","v":"2020-12-24"},{"$f":"IF(DAY(DecSun1)=1,IF(AND(YEAR(DecSun1+20)=CalendarYear,MONTH(DecSun1+20)=12),DecSun1+20,\"\"),IF(AND(YEAR(DecSun1+27)=CalendarYear,MONTH(DecSun1+27)=12),DecSun1+27,\"\"))","v":"2020-12-25"},{"$f":"IF(DAY(DecSun1)=1,IF(AND(YEAR(DecSun1+21)=CalendarYear,MONTH(DecSun1+21)=12),DecSun1+21,\"\"),IF(AND(YEAR(DecSun1+28)=CalendarYear,MONTH(DecSun1+28)=12),DecSun1+28,\"\"))","v":"2020-12-26"}]
[null,null,{"$f":"IF(DAY(NovSun1)=1,IF(AND(YEAR(NovSun1+22)=CalendarYear,MONTH(NovSun1+22)=11),NovSun1+22,\"\"),IF(AND(YEAR(NovSun1+29)=CalendarYear,MONTH(NovSun1+29)=11),NovSun1+29,\"\"))","v":"2020-11-29"},{"$f":"IF(DAY(NovSun1)=1,IF(AND(YEAR(NovSun1+23)=CalendarYear,MONTH(NovSun1+23)=11),NovSun1+23,\"\"),IF(AND(YEAR(NovSun1+30)=CalendarYear,MONTH(NovSun1+30)=11),NovSun1+30,\"\"))","v":"2020-11-30"},{"$f":"IF(DAY(NovSun1)=1,IF(AND(YEAR(NovSun1+24)=CalendarYear,MONTH(NovSun1+24)=11),NovSun1+24,\"\"),IF(AND(YEAR(NovSun1+31)=CalendarYear,MONTH(NovSun1+31)=11),NovSun1+31,\"\"))","v":""},{"$f":"IF(DAY(NovSun1)=1,IF(AND(YEAR(NovSun1+25)=CalendarYear,MONTH(NovSun1+25)=11),NovSun1+25,\"\"),IF(AND(YEAR(NovSun1+32)=CalendarYear,MONTH(NovSun1+32)=11),NovSun1+32,\"\"))","v":""},{"$f":"IF(DAY(NovSun1)=1,IF(AND(YEAR(NovSun1+26)=CalendarYear,MONTH(NovSun1+26)=11),NovSun1+26,\"\"),IF(AND(YEAR(NovSun1+33)=CalendarYear,MONTH(NovSun1+33)=11),NovSun1+33,\"\"))","v":""},{"$f":"IF(DAY(NovSun1)=1,IF(AND(YEAR(NovSun1+27)=CalendarYear,MONTH(NovSun1+27)=11),NovSun1+27,\"\"),IF(AND(YEAR(NovSun1+34)=CalendarYear,MONTH(NovSun1+34)=11),NovSun1+34,\"\"))","v":""},{"$f":"IF(DAY(NovSun1)=1,IF(AND(YEAR(NovSun1+28)=CalendarYear,MONTH(NovSun1+28)=11),NovSun1+28,\"\"),IF(AND(YEAR(NovSun1+35)=CalendarYear,MONTH(NovSun1+35)=11),NovSun1+35,\"\"))","v":""},null,{"$f":"IF(DAY(DecSun1)=1,IF(AND(YEAR(DecSun1+22)=CalendarYear,MONTH(DecSun1+22)=12),DecSun1+22,\"\"),IF(AND(YEAR(DecSun1+29)=CalendarYear,MONTH(DecSun1+29)=12),DecSun1+29,\"\"))","v":"2020-12-27"},{"$f":"IF(DAY(DecSun1)=1,IF(AND(YEAR(DecSun1+23)=CalendarYear,MONTH(DecSun1+23)=12),DecSun1+23,\"\"),IF(AND(YEAR(DecSun1+30)=CalendarYear,MONTH(DecSun1+30)=12),DecSun1+30,\"\"))","v":"2020-12-28"},{"$f":"IF(DAY(DecSun1)=1,IF(AND(YEAR(DecSun1+24)=CalendarYear,MONTH(DecSun1+24)=12),DecSun1+24,\"\"),IF(AND(YEAR(DecSun1+31)=CalendarYear,MONTH(DecSun1+31)=12),DecSun1+31,\"\"))","v":"2020-12-29"},{"$f":"IF(DAY(DecSun1)=1,IF(AND(YEAR(DecSun1+25)=CalendarYear,MONTH(DecSun1+25)=12),DecSun1+25,\"\"),IF(AND(YEAR(DecSun1+32)=CalendarYear,MONTH(DecSun1+32)=12),DecSun1+32,\"\"))","v":"2020-12-30"},{"$f":"IF(DAY(DecSun1)=1,IF(AND(YEAR(DecSun1+26)=CalendarYear,MONTH(DecSun1+26)=12),DecSun1+26,\"\"),IF(AND(YEAR(DecSun1+33)=CalendarYear,MONTH(DecSun1+33)=12),DecSun1+33,\"\"))","v":"2020-12-31"},{"$f":"IF(DAY(DecSun1)=1,IF(AND(YEAR(DecSun1+27)=CalendarYear,MONTH(DecSun1+27)=12),DecSun1+27,\"\"),IF(AND(YEAR(DecSun1+34)=CalendarYear,MONTH(DecSun1+34)=12),DecSun1+34,\"\"))","v":""},{"$f":"IF(DAY(DecSun1)=1,IF(AND(YEAR(DecSun1+28)=CalendarYear,MONTH(DecSun1+28)=12),DecSun1+28,\"\"),IF(AND(YEAR(DecSun1+35)=CalendarYear,MONTH(DecSun1+35)=12),DecSun1+35,\"\"))","v":""}]
[null,null,{"$f":"IF(DAY(NovSun1)=1,IF(AND(YEAR(NovSun1+29)=CalendarYear,MONTH(NovSun1+29)=11),NovSun1+29,\"\"),IF(AND(YEAR(NovSun1+36)=CalendarYear,MONTH(NovSun1+36)=11),NovSun1+36,\"\"))","v":""},{"$f":"IF(DAY(NovSun1)=1,IF(AND(YEAR(NovSun1+30)=CalendarYear,MONTH(NovSun1+30)=11),NovSun1+30,\"\"),IF(AND(YEAR(NovSun1+37)=CalendarYear,MONTH(NovSun1+37)=11),NovSun1+37,\"\"))","v":""},{"$f":"IF(DAY(NovSun1)=1,IF(AND(YEAR(NovSun1+31)=CalendarYear,MONTH(NovSun1+31)=11),NovSun1+31,\"\"),IF(AND(YEAR(NovSun1+38)=CalendarYear,MONTH(NovSun1+38)=11),NovSun1+38,\"\"))","v":""},{"$f":"IF(DAY(NovSun1)=1,IF(AND(YEAR(NovSun1+32)=CalendarYear,MONTH(NovSun1+32)=11),NovSun1+32,\"\"),IF(AND(YEAR(NovSun1+39)=CalendarYear,MONTH(NovSun1+39)=11),NovSun1+39,\"\"))","v":""},{"$f":"IF(DAY(NovSun1)=1,IF(AND(YEAR(NovSun1+33)=CalendarYear,MONTH(NovSun1+33)=11),NovSun1+33,\"\"),IF(AND(YEAR(NovSun1+40)=CalendarYear,MONTH(NovSun1+40)=11),NovSun1+40,\"\"))","v":""},{"$f":"IF(DAY(NovSun1)=1,IF(AND(YEAR(NovSun1+34)=CalendarYear,MONTH(NovSun1+34)=11),NovSun1+34,\"\"),IF(AND(YEAR(NovSun1+41)=CalendarYear,MONTH(NovSun1+41)=11),NovSun1+41,\"\"))","v":""},{"$f":"IF(DAY(NovSun1)=1,IF(AND(YEAR(NovSun1+35)=CalendarYear,MONTH(NovSun1+35)=11),NovSun1+35,\"\"),IF(AND(YEAR(NovSun1+42)=CalendarYear,MONTH(NovSun1+42)=11),NovSun1+42,\"\"))","v":""},null,{"$f":"IF(DAY(DecSun1)=1,IF(AND(YEAR(DecSun1+29)=CalendarYear,MONTH(DecSun1+29)=12),DecSun1+29,\"\"),IF(AND(YEAR(DecSun1+36)=CalendarYear,MONTH(DecSun1+36)=12),DecSun1+36,\"\"))","v":""},{"$f":"IF(DAY(DecSun1)=1,IF(AND(YEAR(DecSun1+30)=CalendarYear,MONTH(DecSun1+30)=12),DecSun1+30,\"\"),IF(AND(YEAR(DecSun1+37)=CalendarYear,MONTH(DecSun1+37)=12),DecSun1+37,\"\"))","v":""},{"$f":"IF(DAY(DecSun1)=1,IF(AND(YEAR(DecSun1+31)=CalendarYear,MONTH(DecSun1+31)=12),DecSun1+31,\"\"),IF(AND(YEAR(DecSun1+38)=CalendarYear,MONTH(DecSun1+38)=12),DecSun1+38,\"\"))","v":""},{"$f":"IF(DAY(DecSun1)=1,IF(AND(YEAR(DecSun1+32)=CalendarYear,MONTH(DecSun1+32)=12),DecSun1+32,\"\"),IF(AND(YEAR(DecSun1+39)=CalendarYear,MONTH(DecSun1+39)=12),DecSun1+39,\"\"))","v":""},{"$f":"IF(DAY(DecSun1)=1,IF(AND(YEAR(DecSun1+33)=CalendarYear,MONTH(DecSun1+33)=12),DecSun1+33,\"\"),IF(AND(YEAR(DecSun1+40)=CalendarYear,MONTH(DecSun1+40)=12),DecSun1+40,\"\"))","v":""},{"$f":"IF(DAY(DecSun1)=1,IF(AND(YEAR(DecSun1+34)=CalendarYear,MONTH(DecSun1+34)=12),DecSun1+34,\"\"),IF(AND(YEAR(DecSun1+41)=CalendarYear,MONTH(DecSun1+41)=12),DecSun1+41,\"\"))","v":""},{"$f":"IF(DAY(DecSun1)=1,IF(AND(YEAR(DecSun1+35)=CalendarYear,MONTH(DecSun1+35)=12),DecSun1+35,\"\"),IF(AND(YEAR(DecSun1+42)=CalendarYear,MONTH(DecSun1+42)=12),DecSun1+42,\"\"))","v":""}]